Workbook

Sheet SCHEDULE MJL-S1
A1: AMEREN MISSOURI
A2: ORIGINAL COST OF ELECTRIC PLANT
A3: ="BY FUNCTIONAL CLASSIFICATION "&'SCHEDULE MJL-S3'!A3:G3 -> BY FUNCTIONAL CLASSIFICATION FOR THE TWELVE MONTHS ENDED SEPTEMBER 30, 2021
A4: ($000)
E7: TOTALS | G7: ADJUSTED
E8: PER | G8: ELECTRIC
A9: LINE | C9: FUNCTIONAL CLASSIFICATION | E9: BOOKS | F9: ADJUSTMENTS | G9: TOTALS
C10: (A) | E10: (B) | F10: (C) | G10: (D)
C11: INTANGIBLE PLANT
A12: 1 | C12: FRANCHISES | E12: 100102.102 | F12: 0 | G12: =SUM(E12:F12) -> 100102.102
A13: =1+A12 -> 2 | C13: CALLAWAY LIFE EXTENSION DEFERRAL | E13: 2811.966 | F13: 0 | G13: =SUM(E13:F13) -> 2811.966
A14: 3 | C14: MISC INTANGIBLE PLANT | E14: 538024.024 | F14: -19743.99225 | G14: =SUM(E14:F14) -> 518280.0317
A15: =1+A14 -> 4 | C15: TOTAL INTANGIBLE PLANT | E15: =SUM(E12:E14) -> 640938.092 | F15: =SUM(F12:F14) -> -19743.99225 | G15: =SUM(G12:G14) -> 621194.0997
C17: PRODUCTION PLANT
A18: =1+A15 -> 5 | C18: NUCLEAR | E18: 3504909.472 | F18: -101674.757 | G18: =SUM(E18:F18) -> 3403234.715
A19: =1+A18 -> 6 | C19: CALLAWAY POST OPERATIONAL | E19: 116730.946 | F19: 0 | G19: 116730.946
A20: =1+A19 -> 7 | C20: STEAM | E20: 5004970.139 | F20: -700257.9664 | G20: 4304712.172
A21: 8 | C21: SIOUX CONSTRUCTION ACCOUNTING | E21: 45224.619 | F21: 0 | G21: 45224.619
A22: 9 | C22: HYDRAULIC | E22: 605555.27 | F22: 0 | G22: 605555.27
A23: =1+A22 -> 10 | C23: WIND | E23: 1192153.171 | F23: -52488.13121 | G23: 1139665.04
A24: 11 | C24: OTHER | E24: 1288048.352 | F24: 0 | G24: 1288048.352
A25: 12 | C25: TOTAL PRODUCTION PLANT | E25: =SUM(E18:E24) -> 11757591.97 | F25: =SUM(F18:F24) -> -854420.8546 | G25: =SUM(G18:G24) -> 10903171.11
A27: =1+A25 -> 13 | C27: TRANSMISSION PLANT | E27: 1539297.075 | F27: 0 | G27: =SUM(E27:F27) -> 1539297.075
A29: =+A27+1 -> 14 | C29: DISTRIBUTION PLANT | E29: 7141024.928 | F29: 0 | G29: =SUM(E29:F29) -> 7141024.928
A31: =1+A29 -> 15 | C31: GENERAL PLANT | E31: 880347.815 | F31: -19075.512 | G31: =SUM(E31:F31) -> 861272.303
A33: =1+A31 -> 16 | C33: INCENTIVE COMPENSATION CAPITALIZED | E33: 0 | F33: -52694.094 | G33: =SUM(E33:F33) -> -52694.094
A35: =1+A33 -> 17 | C35: TOTAL PLANT IN SERVICE | E35: =E15+SUM(E25:E33) -> 21959199.88 | F35: =F15+SUM(F25:F33) -> -945934.4529 | G35: =G15+SUM(G25:G33) -> 21013265.43
C39: PRO FORMA ADJUSTMENTS
A40: =1+A35 -> 18 | B40: -1 | C40: Eliminate Plant balances related to FAS 143 Asset Retirement Obligation and ASC 842 Leases
A41: =1+A40 -> 19 | D41: NUCLEAR | F41: -101674.757
A42: =1+A41 -> 20 | D42: STEAM | F42: -129833.3698
A43: =1+A42 -> 21 | D43: WIND | F43: -52488.13121
A44: 22 | D44: DISTRIBUTION | F44: 0
A45: =1+A44 -> 23 | D45: GENERAL | F45: -4614.981
A46: =1+A45 -> 24 | D46: TOTAL | G46: =SUM(F41:F45) -> -288611.239
A48: =1+A46 -> 25 | B48: -2 | C48: Paperless bill credit rebuttal adjustment
A49: =1+A48 -> 26 | D49: OTHER INTANGIBLE PLANT | F49: -15.11
A50: =1+A49 -> 27 | D50: TOTAL | G50: =SUM(F49:F49) -> -15.11
A52: =A50+1 -> 28 | B52: (3) | C52: Reduce a portion of the amounts recoverable relating to the Meramec Energy Center due to its upcoming plant retirement. This adjustment reflects the recovery of remaining amounts over a five year period. Other components of this adjustment will be referred to as the Meramec Energy Center adjustment throughout the remainder of schedules MJL-D2 through MJL-D17. | G52: -570424.5967
A57: =A52+1 -> 29 | B57: -4 | C57: Eliminate portions of plant in service for multi-use assets which are applicable to gas operations. For convenience, such assets are recorded as electric plant but are commonly used for both electric and gas.
A58: =1+A57 -> 30
A59: =1+A58 -> 31
A60: =1+A59 -> 32 | D60: INTANGIBLE | F60: -19728.88225
A61: =1+A60 -> 33 | D61: GENERAL | F61: -14460.531
D62: TOTAL | G62: =SUM(F60:F61) -> -34189.41325
A64: =1+A61 -> 34 | B64: -5 | C64: Reduce Plant-in-Service for disallowed capital incentive compensation
A65: =1+A64 -> 35 | D65: GENERAL | G65: -52694.094
A67: =1+A65 -> 36 | D67: TOTAL PRO FORMA ADJUSTMENTS | G67: =SUM(G41:G65) -> -945934.4529

Sheet SCHEDULE MJL-S2
A1: AMEREN MISSOURI
A2: TOTAL ELECTRIC RESERVES FOR DEPRECIATION AND AMORTIZATION
A3: =+'SCHEDULE MJL-S1'!A3:G3 -> BY FUNCTIONAL CLASSIFICATION FOR THE TWELVE MONTHS ENDED SEPTEMBER 30, 2021
A4: ($000)
E7: TOTALS | G7: ADJUSTED
E8: PER | G8: ELECTRIC
A9: LINE | C9: FUNCTIONAL CLASSIFICATION | E9: BOOKS | F9: ADJUSTMENTS | G9: TOTALS
C10: (A) | E10: (B) | F10: (C) | G10: (D)
C11: INTANGIBLE PLANT
A12: 1 | C12: FRANCHISES | E12: 29335.383 | F12: 0 | G12: =E12+F12 -> 29335.383
A13: =1+A12 -> 2 | C13: CALLAWAY LIFE EXTENSION DEFERRAL | E13: 416.924 | F13: 0 | G13: =E13+F13 -> 416.924
A14: 3 | C14: MISC INTANGIBLE PLANT | E14: 239908.147 | F14: -8515.15038 | G14: =E14+F14 -> 231392.9966
A15: =1+A14 -> 4 | C15: TOTAL INTANGIBLE PLANT | E15: =SUM(E12:E14) -> 269660.454 | F15: =SUM(F12:F14) -> -8515.15038 | G15: =E15+F15 -> 261145.3036
C17: PRODUCTION PLANT
A18: =1+A15 -> 5 | C18: NUCLEAR | E18: 1736698.496 | F18: 9228.96299 | G18: 1745927.459
A19: =1+A18 -> 6 | C19: CALLAWAY POST OPERATIONAL | E19: 105361.279 | F19: 0 | G19: =E19+F19 -> 105361.279
A20: =1+A19 -> 7 | C20: STEAM | E20: 2283613.375 | F20: -575873.0084 | G20: 1707740.366
A21: 8 | C21: SIOUX CONSTRUCTION ACCOUNTING | E21: 20736.346 | F21: 0
A22: 9 | C22: HYDRAULIC | E22: 136699.197 | F22: 0 | G22: 136699.197
A23: =1+A22 -> 10 | C23: WIND | E23: 28331.025 | F23: -1249.532 | G23: 27081.493
A24: 11 | C24: OTHER | E24: 731525.441 | F24: 0 | G24: 731525.441
A25: =1+A24 -> 12 | C25: TOTAL PRODUCTION PLANT | E25: =SUM(E18:E24) -> 5042965.159 | F25: =SUM(F18:F24) -> -567893.5775 | G25: 4475071.581
A27: =1+A25 -> 13 | C27: TRANSMISSION PLANT | E27: 440066.098 | F27: 0 | G27: 440066.098
A29: =1+A27 -> 14 | C29: DISTRIBUTION PLANT | E29: 3150854.814 | F29: 0 | G29: 3150854.814
A31: =1+A29 -> 15 | C31: GENERAL PLANT | E31: 263213.576 | F31: -6239.59008 | G31: 256973.9859
A33: =1+A31 -> 16 | C33: INCENTIVE COMPENSATION CAPITALIZED | E33: 0 | F33: -13590.402 | G33: =E33+F33 -> -13590.402
A35: =1+A33 -> 17 | C35: TOTAL DEPRC. & AMORT RESERVE | E35: =E15+E25+E27+E29+E31+E33 -> 9166760.101 | F35: =F15+F25+F27+F29+F31+F33 -> -596238.7199 | G35: =G15+G25+G27+G29+G31+G33 -> 8570521.381
C37: PRO FORMA ADJUSTMENTS
A38: =1+A35 -> 18 | B38: -1 | C38: Eliminate Reserve balances related to FAS 143 Asset Retirement Obligation and ASC 842 Leases
A39: =1+A38 -> 19 | D39: NUCLEAR | F39: 9228.96299
A40: =1+A39 -> 20 | D40: STEAM | F40: -74587.03761
A41: =1+A40 -> 21 | D41: DISTRIBUTION | F41: 0
A42: 22 | D42: WIND | F42: -1249.532
A43: 23 | D43: GENERAL | F43: -2047.73708
A44: =1+A43 -> 24 | D44: TOTAL | G44: =SUM(F39:F43) -> -68655.3437
A46: =1+A44 -> 25 | B46: -2 | C46: Paperless bill credit rebuttal adjustment
A47: =1+A46 -> 26 | D47: MISC INTANGIBLE PLANT | F47: -4.137
A48: =1+A47 -> 27 | D48: TOTAL | G48: =SUM(F47:F47) -> -4.137
A50: =1+A48 -> 28 | B50: (4) | C50: Meramec Energy Center adjustment. | G50: -501285.9708
A52: =1+A50 -> 29 | B52: -5 | C52: Eliminate portions of plant in service for multi use assets which are applicable to gas operations. For convenience, such assets are recorded as electric plant but are commonly used for both electric and gas
A53: =1+A52 -> 30
A54: =1+A53 -> 31
A55: =1+A54 -> 32 | D55: TOTAL | G55: -12702.86638
A57: =1+A55 -> 33 | B57: -6 | C57: Reserve Balance adjustment for disallowed Incentive Compensation capitalized
A58: =1+A57 -> 34 | D58: GENERAL | G58: -13590.402
A60: =1+A58 -> 35 | D60: TOTAL PRO FORMA ADJUSTMENTS | G60: =SUM(G38:G58) -> -596238.7199

Sheet SCHEDULE MJL-S3
A1: AMEREN MISSOURI
A2: AVERAGE FUEL AND MATERIALS & SUPPLIES INVENTORIES
A3: FOR THE TWELVE MONTHS ENDED SEPTEMBER 30, 2021
A4: ($000)
D6: TOTALS | F6: ADJUSTED
D7: PER | F7: ELECTRIC
A8: LINE | C8: DESCRIPTION | D8: BOOKS | E8: ADJUSTMENTS | F8: TOTALS
C9: (A) | D9: (B) | E9: (C) | F9: (D)
A11: 1 | C11: AVERAGE NUCLEAR FUEL | D11: 143723.024 | E11: 0 | F11: =D11+E11 -> 143723.024
C13: AVERAGE FOSSIL FUEL:
A14: =1+A11 -> 2 | C14: COAL | D14: 104996.236 | E14: -3491 | F14: =D14+E14 -> 101505.236
A15: =1+A14 -> 3 | C15: OIL | D15: 3135.102 | E15: 0 | F15: =D15+E15 -> 3135.102
A16: =1+A15 -> 4 | C16: STORED GAS FOR CTG'S | D16: 1215.218 | E16: 0 | F16: =D16+E16 -> 1215.218
A17: =1+A16 -> 5 | C17: TOTAL FOSSIL FUEL | D17: =SUM(D14:D16) -> 109346.556 | E17: =SUM(E14:E16) -> -3491 | F17: =D17+E17 -> 105855.556
A19: =1+A17 -> 6 | C19: EMISSION ALLOWANCES AND RECS | D19: 214.069 | E19: 0 | F19: =D19+E19 -> 214.069
A21: =1+A19 -> 7 | C21: GENERAL MATERIALS AND SUPPLIES | D21: 280081.192 | E21: -11251.86 | F21: =D21+E21 -> 268829.332
A23: =1+A21 -> 8 | C23: TOTAL | D23: =D11+D17+D19+D21 -> 533364.841 | E23: =E11+E17+E19+E21 -> -14742.86 | F23: =F11+F17+F19+F21 -> 518621.981
C26: PRO FORMA ADJUSTMENT
A27: =1+A23 -> 9 | B27: (2) | C27: Meramec Energy Center adjustment. | F27: -12418.186
A29: =1+A27 -> 10 | B29: (3) | C29: Eliminate portions of average fuel and general materials and supplies which are applicable to gas
A30: =1+A29 -> 11 | C30: operations. | F30: -2324.674
A32: =1+A30 -> 12 | C32: TOTAL PRO FORMA ADJUSTMENTS | F32: =SUM(F27:F31) -> -14742.86

Sheet SCHEDULE MJL-S4
B1: AMEREN MISSOURI
B2: AVERAGE PREPAYMENTS
B3: =+'SCHEDULE MJL-S3'!A3 -> FOR THE TWELVE MONTHS ENDED SEPTEMBER 30, 2021
B4: ($000)
E6: TOTALS | G6: ADJUSTED
E7: PER | G7: ELECTRIC
B8: LINE | D8: DESCRIPTION | E8: BOOKS(1) | F8: ADJUSTMENTS | G8: TOTALS
D9: (A) | E9: (B) | F9: (C) | G9: (D)
B11: 1 | D11: RENTS (3) | E11: 391.951 | F11: -9.446 | G11: =E11+F11 -> 382.505
B12: =1+B11 -> 2 | D12: INSURANCE - DIRECT (2) | E12: 11367.493 | F12: -629.962 | G12: 10737.531
B13: =1+B12 -> 3 | D13: M/A COMM RADIO SYS SRVC AGREEMENT (3) | E13: 0 | F13: 0 | G13: 0
B14: 4 | D14: MEDICAL AND DENTAL VEBA (3) | E14: 4590.902 | F14: -110.641 | G14: 4480.261
B15: 5 | D15: IMAGING SOFTWARE (2) | E15: 59.561 | F15: 0 | G15: 59.561
B16: =1+B15 -> 6 | D16: OPTIV GIGAMON (3) | E16: 0.088 | F16: -0.001 | G16: =E16+F16 -> 0.087
B17: =1+B16 -> 7 | D17: CRM SALESFORCE SUBSCRIPTION (3) | E17: 0 | F17: 0 | G17: =E17+F17 -> 0
B18: 8 | D18: AGA MEMBERSHIP DUES | E18: 13.909 | F18: -13.909 | G18: =E18+F18 -> 0
B19: 9 | D19: KANSAS CITY POWER & LIGHT (2) | E19: 2034.091 | F19: 0 | G19: 2034.091
B20: 10 | D20: PALO ALTO ENTERPRISE (3) | E20: 123.443 | F20: -2.975 | G20: 120.468
B21: 11 | D21: RCGA MEMBERSHIP DUES | E21: 32.718 | F21: 0 | G21: 32.718
B22: 12 | D22: ENERGY EFFICENCY MO COLLABORATIVE | E22: 0 | F22: 0 | G22: 0
B23: 13 | D23: LOW INCOME WEATHERIZATION - DIRECT (2) | E23: 385.839 | F23: -83.734 | G23: =E23+F23 -> 302.105
B25: =1+B23 -> 14 | D25: TOTAL AVERAGE PREPAYMENTS | E25: =SUM(E11:E23) -> 18999.995 | F25: =SUM(F11:F23) -> -850.668 | G25: =SUM(G11:G23) -> 18149.327
B27: =1+B25 -> 15 | C27: -1 | D27: Reflects 13 month average
B28: =1+B27 -> 16 | C28: -2 | D28: Directly assigned to electric or gas.
B29: 13 | C29: -3 | D29: Allocated to gas based on operating expenses excluding fuel and purchased power.
C33: PRO FORMA ADJUSTMENT
B35: =B29+1 -> 14 | C35: -1 | D35: Eliminate portions of prepayments which are applicable to gas operations. Allocated between electric | G35: =+F25 -> -850.668
B36: =1+B35 -> 15 | D36: and gas operations based on operating expenses excluding purchased power, off-system sales and
B37: =1+B36 -> 16 | D37: purchased gas.

Sheet SCHEDULE MJL-S5
A1: AMEREN MISSOURI
A2: TOTAL ELECTRIC CASH WORKING CAPITAL
A3: =+'SCHEDULE MJL-S3'!A3 -> FOR THE TWELVE MONTHS ENDED SEPTEMBER 30, 2021
A4: ($000)
I6: ADJUSTED | J6: CASH WORKING
E7: REVENUE | F7: EXPENSE | G7: NET | I7: TEST YEAR | J7: CAPITAL
A8: LINE | C8: DESCRIPTION | E8: LAG | F8: LEAD (1) | G8: LEAD/LAG | H8: FACTOR | I8: EXPENSE | J8: REQUIREMENT
C9: (A) | E9: (B) | F9: (C) | G9: (D) | H9: (E) | I9: (F) | J9: (G)
A11: 1 | C11: PAYROLL & WITHHOLDINGS | E11: 37.02 | F11: -10.9 | G11: =+E11+F11 -> 26.12 | H11: =ROUND(+G11/365,6) -> 0.071562 | I11: 344027.9438 | J11: =ROUND(+H11*I11,0) -> 24619
A12: =1+A11 -> 2 | C12: PENSIONS AND BENEFITS | E12: 37.02 | F12: -15.7 | G12: =+E12+F12 -> 21.32 | H12: =ROUND(+G12/365,6) -> 0.058411 | I12: -11077.954 | J12: =ROUND(+H12*I12,0) -> -647
A13: 3 | C13: OTHER EMPLOYEE BENEFITS | E13: 37.02 | F13: -17.65 | G13: =+E13+F13 -> 19.37 | H13: =ROUND(+G13/365,6) -> 0.053068 | I13: 48973.465 | J13: =ROUND(+H13*I13,0) -> 2599
A14: 4 | C14: FUEL
A15: 5 | C15: NUCLEAR | E15: 37.02 | F15: -15.21 | G15: =+E15+F15 -> 21.81 | H15: =ROUND(+G15/365,6) -> 0.059753 | I15: 63295 | J15: =ROUND(+H15*I15,0) -> 3782
A16: 6 | C16: COAL | E16: 37.02 | F16: -14.43 | G16: 22.59 | H16: 0.06189 | I16: 506617 | J16: =ROUND(+H16*I16,0) -> 31355
A17: =1+A16 -> 7 | C17: NATURAL GAS | E17: 37.02 | F17: -40.72 | G17: -3.7 | H17: -0.010137 | I17: 15420 | J17: -156
A18: 8 | C18: OIL | E18: 37.02 | F18: -14.69 | G18: =+E18+F18 -> 22.33 | H18: 0.061178 | I18: 2467 | J18: =ROUND(+H18*I18,0) -> 151
A19: 9 | C19: PURCHASED POWER | E19: 37.02 | F19: -18.1 | G19: =+E19+F19 -> 18.92 | H19: 0.051836 | I19: 70501.86767 | J19: =ROUND(+H19*I19,0) -> 3655
A20: 10 | C20: INCENTIVE COMPENSATION | E20: 37.02 | F20: -250.8 | G20: -213.78 | H20: -0.585699 | I20: 30656.81864 | J20: -17956
A21: 11 | C21: UNCOLLECTIBLE ACCOUNTS | E21: 37.02 | F21: -37.02 | G21: 0 | H21: 0 | I21: 7885.039 | J21: 0
A22: 12 | C22: OTHER OPERATING EXPENSES | E22: 37.02 | F22: -42.25 | G22: -5.23 | H22: -0.014329 | I22: 485752.9477 | J22: =ROUND(+H22*I22,0) -> -6960
A24: =1+A22 -> 13 | C24: TOTAL O&M EXPENSES | I24: 1564519.128
A26: =1+A24 -> 14 | C26: TOTAL CASH WORKING CAPITAL REQUIREMENT | J26: =SUM(J11:J22) -> 40442
A28: =1+A26 -> 15 | C28: FICA - EMPLOYER'S PORTION | E28: 37.02 | F28: -9.38 | G28: =+E28+F28 -> 27.64 | H28: =ROUND(+G28/365,6) -> 0.075726 | I28: 21607.42928 | J28: =ROUND(+H28*I28,0) -> 1636
A29: =1+A28 -> 16 | C29: ST. LOUIS PAYROLL EXPENSE TAXES | E29: 37.02 | F29: -9.38 | G29: =+E29+F29 -> 27.64 | H29: =ROUND(+G29/365,6) -> 0.075726 | I29: 490.75254 | J29: =ROUND(+H29*I29,0) -> 37
A30: 17 | C30: FEDERAL UNEMPLOYMENT TAXES | E30: 37.02 | F30: -9.38 | G30: 27.64 | H30: =ROUND(+G30/365,6) -> 0.075726 | I30: 178.53095 | J30: 14
A31: 18 | C31: STATE UNEMPLOYMENT TAXES | E31: 37.02 | F31: -9.38 | G31: 27.64 | H31: 0.075726 | I31: 4.79178 | J31: 0
A32: 19 | C32: CORPORATE FRANCHISE TAXES | E32: 37.02 | F32: -233.19 | G32: -196.17 | H32: -0.537452 | I32: 101.55879 | J32: -55
A33: 20 | C33: PROPERTY TAXES | E33: 37.02 | F33: -183 | G33: -145.98 | H33: -0.399945 | I33: 157052.8635 | J33: -62813
A34: 21 | C34: DECOMMISSIONING FEES | E34: 37.02 | F34: -69.5 | G34: =+E34+F34 -> -32.48 | H34: =ROUND(+G34/365,6) -> -0.088986 | I34: 6758.605 | J34: -601
A35: 22 | C35: SALES TAXES | E35: 37.02 | F35: -9.31 | G35: 27.71 | H35: 0.075918 | I35: 70028.46226 | J35: 5316
A36: =1+A35 -> 23 | C36: MO & IA USE TAXES | E36: 37.02 | F36: -76.25 | G36: -39.23 | H36: -0.107479 | I36: 2754.22137 | J36: -296
A37: =1+A36 -> 24 | C37: IL USE TAXES | E37: 37.02 | F37: -35.78 | G37: =+E37+F37 -> 1.24 | H37: =ROUND(+G37/365,6) -> 0.003397 | I37: 47.457 | J37: =ROUND(+H37*I37,0) -> 0
A38: 25 | C38: FED EXCISE HEAVY USE TAX | E38: 37.02 | F38: 125.57 | G38: =+E38+F38 -> 162.59 | H38: =ROUND(+G38/365,6) -> 0.445452 | I38: 21.0885 | J38: =ROUND(+H38*I38,0) -> 9
A39: =1+A38 -> 26 | C39: SELF PROCURED INS TAX | E39: 37.02 | F39: -241.5 | G39: -204.48 | H39: -0.560219 | I39: -205.603 | J39: 115
A40: 27 | C40: OHIO COMMERCIAL ACTIVITY TAX | E40: 37.02 | F40: 50 | G40: 87.02 | H40: 0.238411 | I40: 0.8 | J40: 0
A41: 28 | C41: GROSS RECEIPTS TAXES | E41: 24.27 | F41: -26.99 | G41: -2.72 | H41: -0.007452 | I41: 133304.667 | J41: -993
A43: =1+A41 -> 29 | C43: TOTAL TAXES AND OTHER EXPENSES | I43: =SUM(I28:I41) -> 392145.6249
A45: =1+A43 -> 30 | C45: NET CUSTOMER SUPPLIED FUNDS | J45: =SUM(J28:J41) -> -57631
A47: =1+A45 -> 31 | C47: NET CASH WORKING CAPITAL REQUIREMENT | J47: =J26+J45 -> -17189

Sheet SCHEDULE MJL-S6
A1: AMEREN MISSOURI
A2: TOTAL ELECTRIC FEDERAL AND STATE INCOME TAX AND CITY EARNINGS TAX CASH REQUIREMENTS
A3: AND INTEREST EXPENSE CASH REQUIREMENT
A4: ='SCHEDULE MJL-S5'!A3 -> FOR THE TWELVE MONTHS ENDED SEPTEMBER 30, 2021
A5: ($000)
J8: CASH WORKING
E9: REVENUE | F9: EXPENSE | G9: NET | I9: TEST YEAR | J9: CAPITAL
A10: LINE | C10: DESCRIPTION | E10: LAG | F10: LEAD (1) | G10: LEAD/LAG | H10: FACTOR | I10: EXPENSE | J10: REQUIREMENT
C11: (A) | E11: (B) | F11: (C) | G11: (D) | H11: (E) | I11: (F) | J11: (G)
A14: 1 | C14: FEDERAL INCOME TAX CASH REQUIREMENT | E14: 37.02 | F14: -38 | G14: =+E14+F14 -> -0.98 | H14: =ROUND(+G14/365,6) -> -0.002685 | I14: 48057.373 | J14: =ROUND(+H14*I14,0) -> -129
A16: =1+A14 -> 2 | C16: MO STATE INCOME TAX CASH REQUIREMENT | E16: 37.02 | F16: -38 | G16: =+E16+F16 -> -0.98 | H16: =ROUND(+G16/365,6) -> -0.002685 | I16: 19899.441 | J16: =ROUND(+H16*I16,0) -> -53
A18: =1+A16 -> 3 | C18: IN STATE INCOME TAX CASH REQUIREMENT | E18: 37.02 | F18: -14 | G18: =+E18+F18 -> 23.02 | H18: =ROUND(+G18/365,6) -> 0.063068 | I18: 40 | J18: =ROUND(+H18*I18,0) -> 3
A20: =1+A18 -> 4 | C20: IA STATE INCOME TAX CASH REQUIREMENT | E20: 37.02 | F20: 77 | G20: =+E20+F20 -> 114.02 | H20: =ROUND(+G20/365,6) -> 0.312384 | I20: 30 | J20: =ROUND(+H20*I20,0) -> 9
A22: =1+A20 -> 5 | C22: CITY EARNINGS TAX CASH REQUIREMENT | E22: 37.02 | F22: -274.5 | G22: =+E22+F22 -> -237.48 | H22: =ROUND(+G22/365,6) -> -0.65063 | I22: -27.194 | J22: =ROUND(+H22*I22,0) -> 18
A24: 6 | C24: INTEREST EXPENSE CASH REQUIREMENT | E24: 37.02 | F24: -91.37 | G24: =+E24+F24 -> -54.35 | H24: =ROUND(+G24/365,6) -> -0.148904 | I24: 188489 | J24: =ROUND(+H24*I24,0) -> -28067

Sheet SCHEDULE MJL-S7
A1: AMEREN MISSOURI
A2: TOTAL ELECTRIC AVERAGE CUSTOMER ADVANCES FOR CONSTRUCTION AND
A3: AVERAGE CUSTOMER DEPOSITS
A4: ='SCHEDULE MJL-S4'!B3 -> FOR THE TWELVE MONTHS ENDED SEPTEMBER 30, 2021
A5: ($000)
A8: LINE | C8: DESCRIPTION | E8: TOTAL ELECTRIC
C9: (A) | E9: (B)
A13: =1 -> 1 | C13: AVERAGE CUSTOMER ADVANCES FOR CONSTRUCTION | E13: -827.575
A16: =1+A13 -> 2 | C16: AVERAGE CUSTOMER DEPOSITS | E16: -17969.476

Sheet SCHEDULE MJL-S8
A1: AMEREN MISSOURI
A2: OTHER REGULATORY ASSETS
A3: AND REGULATORY LIABILITIES
A4: =+'SCHEDULE MJL-S9'!A3:H3 -> FOR THE TWELVE MONTHS ENDED SEPTEMBER 30, 2021
A5: ($000)
H9: TOTAL
A10: LINE | C10: DESCRIPTION | H10: ELECTRIC
C11: (A) | H11: (B)(1)
A15: =1 -> 1 | C15: PENSIONS | H15: -25174.27
A18: =1+A15 -> 2 | C18: OTHER POST-EMPLOYMENT BENEFITS | H18: -6938.869
A21: =1+A18 -> 3 | C21: PAYS REGULATORY ASSET | H21: 184.806
A24: =1+A21 -> 4 | C24: PISA REGULATORY ASSET | H24: 246605.4889
A27: =1+A24 -> 5 | C27: Reserved for future use | H27: 0
A30: =A24+1 -> 5 | C30: OVER COLLECTED AMORTIZATIONS IN RATE BASE | H30: -196.301
A33: 6 | C33: EQUITY ISSUANCE COSTS | H33: 7003.50355
A35: 7 | C35: (1) A positive balance is a Regulatory Asset and a negative balance is a
A36: =1+A35 -> 8 | C36: Regulatory Liability.

Sheet SCHEDULE MJL-S9
A1: AMEREN MISSOURI
A2: ACCUMULATED DEFERRED INCOME TAXES
A3: =+'SCHEDULE MJL-S3'!A3:G3 -> FOR THE TWELVE MONTHS ENDED SEPTEMBER 30, 2021
A4: ($000)
F6: TOTAL | H6: ADJUSTED
F7: ELECTRIC | G7: PRO FORMA | H7: ELECTRIC
A8: LINE | C8: DESCRIPTION | F8: PER BOOKS | G8: ADJUSTMENTS | H8: TOTAL
C9: (A) | F9: (B) | G9: (C) | H9: (D)
A11: 1 | C11: ACCOUNT 190 | F11: 40075.785 | G11: 0 | H11: =+F11+G11 -> 40075.785
A13: 2 | C13: ACCOUNT 281 | F13: -91705.815 | G13: 0 | H13: =+F13+G13 -> -91705.815
A15: 3 | C15: ACCOUNT 282 | F15: -2798561.962 | G15: 0 | H15: =+F15+G15 -> -2798561.962
A17: 4 | C17: ACCOUNT 283 | F17: -94976.885 | G17: 0 | H17: =+F17+G17 -> -94976.885
A19: 5 | C19: MERAMEC ENERGY CENTER ADJUSTMENT | F19: 0 | G19: 2463.904 | H19: =+F19+G19 -> 2463.904
A21: 6 | C21: TOTAL ACCUMULATED DEFERRED INCOME TAXES | F21: =SUM(F11:F20) -> -2945168.877 | G21: =SUM(G11:G20) -> 2463.904 | H21: =SUM(H11:H20) -> -2942704.973
C24: PRO FORMA ADJUSTMENT:
A25: 7 | C25: Meramec Energy Center Adjustment.

Sheet SCHEDULE MJL-S10
A1: AMEREN MISSOURI
A2: TOTAL ELECTRIC PER BOOK AND PRO FORMA OPERATING REVENUES
A3: FOR THE TWELVE MONTHS ENDED DECEMBER 31, 2020
A4: ($000)
F8: ADJUSTED
D9: TOTAL | F9: TOTAL
A10: LINE | C10: DESCRIPTION | D10: ELECTRIC | E10: ADJUSTMENTS | F10: ELECTRIC
C11: (A) | D11: (B) | E11: (C) | F11: (D)
C13: OPERATING REVENUES
A14: 1 | C14: RETAIL REVENUES | D14: 2673831.613 | E14: =SUM(D31:D45) -> -185362.359 | F14: =D14+E14 -> 2488469.254
A15: =1+A14 -> 2 | C15: PROVISION FOR RATE REFUNDS | D15: 29040.497 | E15: =+E48 -> -29040.497 | F15: =D15+E15 -> 0
A16: =1+A15 -> 3 | C16: OTHER ELECTRIC REVENUES | D16: 85005.359 | E16: =+D50+D51+D52+D55+D56+D57+D53+D54 -> 3113.68547 | F16: =D16+E16 -> 88119.04447
A18: =1+A16 -> 4 | C18: TOTAL REVENUES | D18: =SUM(D13:D16) -> 2787877.469 | E18: =SUM(E13:E16) -> -211289.1705 | F18: =SUM(F13:F16) -> 2576588.298
A20: =1+A18 -> 5 | C20: DISPOSITION OF ALLOWANCES | D20: -0.048 | E20: =+E60 -> 0.048 | F20: =D20+E20 -> 0
A22: =1+A20 -> 6 | C22: OFF-SYSTEM SALES - ENERGY | D22: 152306.187 | E22: =+E62 -> 164222.605 | F22: =D22+E22 -> 316528.792
A24: =1+A22 -> 7 | C24: OFF-SYSTEM SALES-CAPACITY REVENUE | D24: 17870.99 | E24: =+E64 -> 194.886 | F24: =D24+E24 -> 18065.876
A26: =A24+1 -> 8 | C26: TOTAL REVENUES PER BOOKS | D26: =SUM(D18:D24) -> 2958054.598 | E26: =SUM(E18:E24) -> -46871.63153 | F26: =SUM(F18:F24) -> 2911182.966
C30: PRO FORMA ADJUSTMENTS:
A31: =1+A26 -> 9 | B31: -1 | C31: REMOVE ADD ON REVENUE TAX | D31: -133114.442
A32: =1+A31 -> 10 | B32: -2 | C32: ELIMINATE REVENUE FROM MEEIA RECOVERIES | D32: -90050.537
A33: 11 | B33: -3 | C33: ELIMINATE REVENUE FROM FAC RECOVERIES | D33: 47582.704
A34: 12 | B34: -4 | C34: ELIMINATE UNBILLED REVENUE | D34: 7432
A35: 13 | B35: -5 | C35: ADJUST FOR PANDEMIC SHOCK | D35: 8256.829
A36: 14 | B36: -6 | C36: ADJUST FOR UPDATE PERIOD | D36: 11041.676
A37: 15 | B37: -7 | C37: ADJUST FOR EDI | D37: -308.447
A38: 16 | B38: -8 | C38: ADJUST FOR GROWTH | D38: 4249.373
A39: 17 | B39: -9 | C39: ADJUST FOR RESRAM REVENUES | D39: -11459.86
A40: 18 | B40: -10 | C40: ADJUST FOR ENERGY EFFICIENCY AND SOLAR ANNUALIZATION | D40: -26043.413
A41: 19 | B41: -11 | C41: ADJUST FOR SEASONAL PRORATION | D41: 4640.979
A42: 20 | B42: -12 | C42: ADJUST FOR COMMUNITY SOLAR | D42: 94.056
A43: 21 | B43: -13 | C43: DAYS ADJUSTMENT | D43: 5041.629
A44: 22 | B44: -14 | C44: ADJUST FOR BILLING UNITS | D44: -2844.647
A45: =1+A44 -> 23 | B45: -15 | C45: ADJUST FOR NORMAL WEATHER | D45: -9880.259
A46: =1+A45 -> 24 | C46: TOTAL | E46: =SUM(D31:D45) -> -185362.359
A48: =1+A46 -> 25 | B48: -16 | C48: ELIMINATE PROVISION FOR RATE REFUNDS | E48: -29040.497
A50: =1+A48 -> 26 | B50: -17 | C50: ADJUST TRANSMISSION REVENUES | D50: 2693.58043
A51: 27 | B51: -18 | C51: MISC REVENUE FROM COAL REFINEMENT | D51: -1385.39596
A52: 28 | B52: -19 | C52: ADJUST WAIVED LATE FEE REVENUE FROM AAO | D52: 3290.698
A53: 29 | B53: -20 | C53: ADJUST DICONNECT/RECONNECT FEES | D53: 349.966
A54: 30 | B54: -21 | C54: ADJUST LEASE REVENUE FROM RENT REVENUE | D54: 1521.516
A55: 31 | B55: -22 | C55: MISC LEASE REVENUE FROM SOFTWARE LEASES | D55: -1671.589
A56: 32 | B56: -23 | C56: ADJUST BOA LEASE REVENUE | D56: -1686.805
A57: 33 | B57: -24 | C57: ADJUST FOR PAYS REVENUES | D57: 1.715
A58: 34 | C58: TOTAL | E58: =SUM(D50:D57) -> 3113.68547
A60: =1+A58 -> 35 | B60: -21 | C60: ELIMINATE DISPOSITION OF ALLOWANCES | E60: 0.048
A62: =1+A60 -> 36 | B62: -22 | C62: ADJUST OFF-SYSTEM SALES - ENERGY | E62: 164222.605
A64: =1+A62 -> 37 | B64: -23 | C64: ADJUST OFF-SYSTEM SALES - CAPACITY | E64: 194.886
A66: =1+A64 -> 38 | C66: TOTAL PRO FORMA ADJUSTMENTS | E66: =SUM(E31:E64) -> -46871.63153

Sheet SCHEDULE MJL-S11-1
F1: #1 | G1: #2 | H1: #3 | I1: #4 | J1: #5 | K1: #6 | L1: #7 | M1: #8 | N1: #9 | S1: #10 | T1: #11 | U1: #12 | V1: #13 | W1: #14 | X1: #15 | Y1: #16 | Z1: #17 | AA1: #18 | AB1: #19 | AG1: #20 | AH1: #21 | AI1: #22 | AJ1: #23 | AK1: #24 | AL1: #25 | AM1: #26 | AN1: #27 | AS1: #28 | AT1: #29 | AU1: #30 | AV1: #31 | AW1: #32 | AX1: #33 | AY1: #34 | AZ1: #35 | BA1: #36 | BF1: #37 | BG1: #38 | BH1: #39 | BI1: #40 | BJ1: #41 | BK1: #42 | BL1: #43 | BM1: #44 | BN1: #45 | BO1: #46 | BT1: #47 | BU1: #48 | BV1: #49 | BW1: #50 | BX1: #51 | BY1: #52 | BZ1: #53 | CA1: #54
C2: Title included in Page header for printing purposes. | G2: SHORT-TERM | H2: LONG-TERM | K2: ADJUST | AI2: ENERGY EFFICIENCY | AU2: REBASE | AV2: AMORTIZE | BA2: BOARD OF
E3: TOTAL | G3: INCENTIVE | H3: INCENTIVE | I3: STAFFING | J3: CHANGE IN FUEL | K3: PURCHASED | L3: MARK TWAIN | M3: COAL | N3: STEAM | T3: ELIMINATE | U3: CALLAWAY | V3: CALLAWAY | W3: OTHER | X3: REBASE | Y3: ELIMINATE | Z3: ANNUALIZE SOLAR | AA3: DEPRECIATION | AB3: NORMALIZE | AG3: ANNUALIZE | AH3: ADD INTEREST | AI3: PROGRAM COST | AJ3: INTENTIONALLY | AK3: ANNUALIZE | AM3: ANNUALIZE | AS3: MEDICAL & | AT3: NON-QUALIFIED | AU3: PENSION | AV3: PENSION | AW3: RESRAM | BA3: DIRECTORS | BF3: DEPRECIATION | BG3: BOA | BH3: SOFTWARE | BI3: ALLOCATION | BJ3: NORMALIZE | BL3: ELECTRIC | BM3: CUSTOMER | BN3: EV | BO3: SOFTWARE | BT3: INCREASE IN | BU3: AMR | BW3: PAPERLESS | BX3: FACILITY | BY3: CALL CENTER | BZ3: RUSH ISLAND | CA3: CYBERSECURITY | CC3: TOTAL | CD3: PRO FORMA
E4: PER | F4: LABOR | G4: COMPENSATION | H4: COMPENSATION | I4: ANNUALIZATION | J4: EXPENSE FOR | K4: POWER FOR | L4: TRANSMISSION | M4: REFINEMENT | N4: PLANT | S4: MERAMEC | T4: FAC | U4: REFUELING | V4: UNPLANNED | W4: RES AMORT | X4: RES | Y4: SOLAR | Z4: REBATE | AA4: TO O&M | AB4: STORM | AG4: VEG MGMT & | AH4: ON CUSTOMER | AI4: RECOVERY | AJ4: LEFT | AK4: BAD DEBT | AL4: MEMBERSHIP | AM4: EEI | AN4: INSURANCE | AS4: BENEFIT | AT4: PENSION | AU4: AND OPEB | AV4: AND OPEB | AW4: BASE | AX4: ALCOHOL | AY4: RATE CASE | AZ4: MPSC | BA4: EXPENSE | BF4: STUDY | BG4: RENTAL | BH4: RENTAL | BI4: FACTOR | BJ4: COVID | BK4: REMOVE | BL4: COSTS | BM4: CONVENIENCE | BN4: INCENTIVE | BO4: MAINTENANCE | BT4: BUILDING RENT | BU4: COST | BV4: MISCELLANEOUS | BW4: BILL | BX4: O&M | BY4: COSTS | BZ4: NSR LEGAL FEES | CA4: COSTS | CC4: PRO FORMA | CD4: ELECTRIC
C5: LINE | D5: FUNCTIONAL CLASSIFICATION | E5: BOOKS | F5: ADJUSTMENT | G5: ADJUSTMENT | H5: ADJUSTMENT | I5: SALARY & BENEFITS | J5: TU CHANGE | K5: TU CHANGE | L5: ADJUSTMENT | M5: ADJUSTMENT | N5: MAINTENANCE | Q5: LINE | R5: FUNCTIONAL CLASSIFICATION | S5: ADJUSTMENT | T5: RECOVERY | U5: EXPENSES | V5: OUTAGE | W5: ADJUSTMENT | X5: EXPENSE | Y5: AMOUNTS | Z5: AMORTIZATION | AA5: ADJUSTMENT | AB5: COSTS | AE5: LINE | AF5: FUNCTIONAL CLASSIFICATION | AG5: INSPECTIONS | AH5: DEPOSITS | AI5: ADJUSTMENT | AJ5: BLANK | AK5: EXPENSE | AL5: DUES | AM5: DUES | AN5: ADJUST. | AQ5: LINE | AR5: FUNCTIONAL CLASSIFICATION | AS5: ADJUST. | AT5: ADJUST. | AU5: TRACKER | AV5: TRACKER | AW5: EXPENSE | AX5: PURCHASES | AY5: EXPENSES | AZ5: ASSESSMENT | BA5: ADJUSTMENT | BD5: LINE | BE5: FUNCTIONAL CLASSIFICATION | BF5: EXPENSE | BG5: EXPENSE | BH5: EXPENSE | BI5: ADJUSTMENT | BJ5: EXPENSES | BK5: COLI | BL5: ALLOC TO GAS | BM5: FEES | BN5: ADJUSTMENT | BO5: ADJUSTMENT | BR5: LINE | BS5: FUNCTIONAL CLASSIFICATION | BT5: FROM AMS | BU5: SAVINGS | BV5: EXPENSES | BW5: CREDIT | BX5: ADJUSTMENT | BY5: ADJUSTMENT | BZ5: ADJUSTMENT | CA5: ADJUSTMENT | CC5: ADJUSTMENT | CD5: TOTALS
D6: (A) | E6: (B) | F6: (C) | G6: (D) | H6: (E) | I6: (F) | J6: (G) | K6: (H) | L6: (I) | M6: (J) | N6: (K) | R6: (A) | S6: (B) | T6: (C) | U6: (D) | V6: (E) | W6: (F) | X6: (G) | Y6: (H) | Z6: (I) | AA6: (J) | AB6: (K) | AF6: (A) | AG6: (B) | AH6: (C) | AI6: (D) | AJ6: (E ) | AK6: (F) | AL6: (G) | AM6: (H) | AN6: (I) | AR6: (A) | AS6: (B) | AT6: (C) | AU6: (D) | AV6: (E ) | AW6: (F) | AX6: (G) | AY6: (H) | AZ6: (I) | BA6: (J) | BE6: (A) | BF6: (B) | BG6: (C) | BH6: (D) | BI6: (E ) | BJ6: (F) | BK6: (G) | BL6: (H) | BM6: (I) | BN6: (J) | BO6: (K) | BS6: (A) | BT6: (B) | BU6: (C) | BV6: (D) | BW6: (E ) | BX6: (F) | BY6: (G) | BZ6: (H) | CA6: (I) | CC6: (G) | CD6: (H)
D7: PRODUCTION: | R7: PRODUCTION: | AF7: PRODUCTION: | AR7: PRODUCTION: | BE7: PRODUCTION: | BS7: PRODUCTION:
D8: INCREMENTAL COSTS: | R8: INCREMENTAL COSTS: | AF8: INCREMENTAL COSTS: | AR8: INCREMENTAL COSTS: | BE8: INCREMENTAL COSTS: | BS8: INCREMENTAL COSTS:
C9: 1 | D9: LABOR | E9: 204320.5591 | F9: 4106.707 | G9: -819.529 | H9: -1576.931367 | I9: 0 | J9: 0 | K9: 0 | L9: 0 | M9: 0 | Q9: 1 | R9: LABOR | S9: 0 | T9: 0 | U9: 5088.282 | V9: 0 | W9: 0 | X9: 0 | Y9: 0 | Z9: 0 | AA9: 0 | AB9: 0 | AE9: 1 | AF9: LABOR | AG9: 0 | AH9: 0 | AI9: 0 | AJ9: 0 | AK9: 0 | AL9: 0 | AM9: 0 | AN9: 0 | AQ9: 1 | AR9: LABOR | AS9: 0 | AT9: 0 | AU9: 0 | AV9: 0 | AW9: 0 | AX9: 0 | AY9: 0 | AZ9: 0 | BA9: 0 | BD9: 1 | BE9: LABOR | BF9: 0 | BG9: 0 | BH9: 0 | BI9: 0 | BJ9: 0 | BK9: 0 | BL9: 0 | BM9: 0 | BN9: 0 | BR9: 1 | BS9: LABOR | BT9: 0 | BU9: 0 | BV9: 0 | BW9: 0 | CC9: =SUM(F9:N9,S9:AB9,AG9:AN9,AS9:BA9,BF9:BP9,BT9:CB9) -> 6798.528633 | CD9: =E9+CC9 -> 211119.0878
C10: 2 | D10: FUEL (EXCL. W/H CR.) | R10: FUEL (EXCL. W/H CR.) | AF10: FUEL (EXCL. W/H CR.) | AR10: FUEL (EXCL. W/H CR.) | BE10: FUEL (EXCL. W/H CR.) | BS10: FUEL (EXCL. W/H CR.)
D11: BASE LOAD | E11: 432189.113 | F11: 0 | G11: 0 | H11: 0 | I11: 0 | J11: -53823.69524 | K11: 0 | L11: 0 | M11: 0 | Q11: =1+Q9 -> 2 | R11: BASE LOAD | S11: 0 | T11: 0 | U11: 0 | V11: 0 | W11: 0 | X11: 0 | Y11: 0 | Z11: 0 | AA11: 0 | AB11: 0 | AE11: =1+AE9 -> 2 | AF11: BASE LOAD | AG11: 0 | AH11: 0 | AI11: 0 | AJ11: 0 | AK11: 0 | AL11: 0 | AM11: 0 | AN11: 0 | AQ11: =1+AQ9 -> 2 | AR11: BASE LOAD | AS11: 0 | AT11: 0 | AU11: 0 | AV11: 0 | AW11: 0 | AX11: 0 | AY11: 0 | AZ11: 0 | BA11: 0 | BD11: =1+BD9 -> 2 | BE11: BASE LOAD | BF11: 0 | BG11: 0 | BH11: 0 | BI11: 0 | BJ11: 0 | BK11: 0 | BL11: 0 | BM11: 0 | BN11: 0 | BR11: =1+BR9 -> 2 | BS11: BASE LOAD | BT11: 0 | BU11: 0 | BV11: 0 | BW11: 0 | CC11: =SUM(F11:N11,S11:AB11,AG11:AN11,AS11:BA11,BF11:BP11,BT11:CB11) -> -53823.69524 | CD11: =E11+CC11 -> 378365.4178
D12: INTERCHANGE | E12: 103625.1871 | F12: 0 | G12: 0 | H12: 0 | I12: 0 | J12: 117935.5669 | K12: 0 | L12: 0 | M12: 0 | Q12: =1+Q11 -> 3 | R12: INTERCHANGE | S12: 0 | T12: 0 | U12: 0 | V12: 0 | W12: 0 | X12: 0 | Y12: 0 | Z12: 0 | AA12: 0 | AB12: 0 | AE12: =1+AE11 -> 3 | AF12: INTERCHANGE | AG12: 0 | AH12: 0 | AI12: 0 | AJ12: 0 | AK12: 0 | AL12: 0 | AM12: 0 | AN12: 0 | AQ12: =1+AQ11 -> 3 | AR12: INTERCHANGE | AS12: 0 | AT12: 0 | AU12: 0 | AV12: 0 | AW12: 0 | AX12: 0 | AY12: 0 | AZ12: 0 | BA12: 0 | BD12: =1+BD11 -> 3 | BE12: INTERCHANGE | BF12: 0 | BG12: 0 | BH12: 0 | BI12: 0 | BJ12: 0 | BK12: 0 | BL12: 0 | BM12: 0 | BN12: 0 | BR12: =1+BR11 -> 3 | BS12: INTERCHANGE | BT12: 0 | BU12: 0 | BV12: 0 | BW12: 0 | CC12: =SUM(F12:N12,S12:AB12,AG12:AN12,AS12:BA12,BF12:BP12,BT12:CB12) -> 117935.5669 | CD12: =E12+CC12 -> 221560.754
C13: 3 | D13: FUEL ADDITIVES | E13: 6265.62 | F13: 0 | G13: 0 | H13: 0 | I13: 0 | J13: 1626.543 | K13: 0 | L13: 0 | M13: 0 | N13: 0 | Q13: =1+Q12 -> 4 | R13: FUEL ADDITIVES | S13: 0 | T13: 0 | U13: 0 | V13: 0 | W13: 0 | X13: 0 | Y13: 0 | Z13: 0 | AA13: 0 | AB13: 0 | AE13: =1+AE12 -> 4 | AF13: FUEL ADDITIVES | AG13: 0 | AH13: 0 | AI13: 0 | AJ13: 0 | AK13: 0 | AL13: 0 | AM13: 0 | AN13: 0 | AQ13: =1+AQ12 -> 4 | AR13: FUEL ADDITIVES | AS13: 0 | AT13: 0 | AU13: 0 | AV13: 0 | AW13: 0 | AX13: 0 | AY13: 0 | AZ13: 0 | BA13: 0 | BD13: =1+BD12 -> 4 | BE13: FUEL ADDITIVES | BF13: 0 | BG13: 0 | BH13: 0 | BI13: 0 | BJ13: 0 | BK13: 0 | BL13: 0 | BM13: 0 | BN13: 0 | BR13: =1+BR12 -> 4 | BS13: FUEL ADDITIVES | BT13: 0 | BU13: 0 | BV13: 0 | BW13: 0 | CC13: =SUM(F13:N13,S13:AB13,AG13:AN13,AS13:BA13,BF13:BP13,BT13:CB13) -> 1626.543 | CD13: =E13+CC13 -> 7892.163
C14: 4 | D14: PURCHASED POWER | F14: 0 | G14: 0 | H14: 0 | R14: PURCHASED POWER | AF14: PURCHASED POWER | AR14: PURCHASED POWER | BE14: PURCHASED POWER | BS14: PURCHASED POWER
D15: ENERGY | R15: ENERGY | AF15: ENERGY | AR15: ENERGY | BE15: ENERGY | BS15: ENERGY
D16: BASE LOAD | E16: 72665.526 | F16: 0 | G16: 0 | H16: 0 | I16: 0 | J16: 0 | K16: -13993.07333 | L16: 0 | M16: 0 | N16: 0 | Q16: =1+Q13 -> 5 | R16: BASE LOAD | S16: 0 | T16: 0 | U16: 0 | V16: 0 | W16: 0 | X16: 0 | Y16: 0 | Z16: 0 | AA16: 0 | AB16: 0 | AE16: =1+AE13 -> 5 | AF16: BASE LOAD | AG16: 0 | AH16: 0 | AI16: 0 | AJ16: 0 | AK16: 0 | AL16: 0 | AM16: 0 | AN16: 0 | AQ16: =1+AQ13 -> 5 | AR16: BASE LOAD | AS16: 0 | AT16: 0 | AU16: 0 | AV16: 0 | AW16: 0 | AX16: 0 | AY16: 0 | AZ16: 0 | BA16: 0 | BD16: =1+BD13 -> 5 | BE16: BASE LOAD | BF16: 0 | BG16: 0 | BH16: 0 | BI16: 0 | BJ16: 0 | BK16: 0 | BL16: 0 | BM16: 0 | BN16: 0 | BR16: =1+BR13 -> 5 | BS16: BASE LOAD | BT16: 0 | BU16: 0 | BV16: 0 | BW16: 0 | BX16: 0 | BY16: 0 | BZ16: 0 | CA16: 0 | CC16: =SUM(F16:N16,S16:AB16,AG16:AN16,AS16:BA16,BF16:BP16,BT16:CB16) -> -13993.07333 | CD16: =E16+CC16 -> 58672.45267
D17: INTERCHANGE | E17: -6184.102 | F17: 0 | G17: 0 | H17: 0 | I17: 0 | J17: 0 | K17: 6184.102 | L17: 0 | M17: 0 | N17: 0 | Q17: =1+Q16 -> 6 | R17: INTERCHANGE | S17: 0 | T17: 0 | U17: 0 | V17: 0 | W17: 0 | X17: 0 | Y17: 0 | Z17: 0 | AA17: 0 | AB17: 0 | AE17: =1+AE16 -> 6 | AF17: INTERCHANGE | AG17: 0 | AH17: 0 | AI17: 0 | AJ17: 0 | AK17: 0 | AL17: 0 | AM17: 0 | AN17: 0 | AQ17: =1+AQ16 -> 6 | AR17: INTERCHANGE | AS17: 0 | AT17: 0 | AU17: 0 | AV17: 0 | AW17: 0 | AX17: 0 | AY17: 0 | AZ17: 0 | BA17: 0 | BD17: =1+BD16 -> 6 | BE17: INTERCHANGE | BF17: 0 | BG17: 0 | BH17: 0 | BI17: 0 | BJ17: 0 | BK17: 0 | BL17: 0 | BM17: 0 | BN17: 0 | BR17: =1+BR16 -> 6 | BS17: INTERCHANGE | BT17: 0 | BU17: 0 | BV17: 0 | BW17: 0 | BX17: 0 | BY17: 0 | BZ17: 0 | CA17: 0 | CC17: 6184.102 | CD17: =E17+CC17 -> 0
C18: 5 | D18: CAPACITY COSTS | R18: CAPACITY COSTS | W18: 0 | X18: 0 | Y18: 0 | Z18: 0 | AA18: 0 | AB18: 0 | AF18: CAPACITY COSTS | AR18: CAPACITY COSTS | AT18: 0 | AU18: 0 | AV18: 0 | AW18: 0 | AX18: 0 | AY18: 0 | AZ18: 0 | BA18: 0 | BE18: CAPACITY COSTS | BF18: 0 | BG18: 0 | BH18: 0 | BI18: 0 | BJ18: 0 | BK18: 0 | BL18: 0 | BM18: 0 | BN18: 0 | BS18: CAPACITY COSTS | BT18: 0 | BU18: 0 | BV18: 0 | BW18: 0 | BX18: 0 | BY18: 0 | BZ18: 0 | CA18: 0 | CC18: 0
D19: BASE LOAD | E19: 11550.057 | F19: 0 | G19: 0 | H19: 0 | I19: 0 | J19: 0 | K19: 279.358 | L19: 0 | M19: 0 | N19: 0 | Q19: =1+Q17 -> 7 | R19: BASE LOAD | S19: 0 | T19: 0 | U19: 0 | V19: 0 | W19: 0 | X19: 0 | Y19: 0 | Z19: 0 | AA19: 0 | AB19: 0 | AE19: =1+AE17 -> 7 | AF19: BASE LOAD | AG19: 0 | AH19: 0 | AI19: 0 | AJ19: 0 | AK19: 0 | AL19: 0 | AM19: 0 | AN19: 0 | AQ19: =1+AQ17 -> 7 | AR19: BASE LOAD | AS19: 0 | AT19: 0 | AU19: 0 | AV19: 0 | AW19: 0 | AX19: 0 | AY19: 0 | AZ19: 0 | BA19: 0 | BD19: =1+BD17 -> 7 | BE19: BASE LOAD | BF19: 0 | BG19: 0 | BH19: 0 | BI19: 0 | BJ19: 0 | BK19: 0 | BL19: 0 | BM19: 0 | BN19: 0 | BR19: =1+BR17 -> 7 | BS19: BASE LOAD | BT19: 0 | BU19: 0 | BV19: 0 | BW19: 0 | BX19: 0 | BY19: 0 | BZ19: 0 | CA19: 0 | CC19: 279.358 | CD19: =E19+CC19 -> 11829.415
D20: INTERCHANGE | E20: 0 | F20: 0 | G20: 0 | H20: 0 | I20: 0 | J20: 0 | K20: 0 | L20: 0 | M20: 0 | N20: 0 | Q20: =1+Q19 -> 8 | R20: INTERCHANGE | S20: 0 | T20: 0 | U20: 0 | V20: 0 | W20: 0 | X20: 0 | Y20: 0 | Z20: 0 | AA20: 0 | AB20: 0 | AE20: =1+AE19 -> 8 | AF20: INTERCHANGE | AG20: 0 | AH20: 0 | AI20: 0 | AJ20: 0 | AK20: 0 | AL20: 0 | AM20: 0 | AN20: 0 | AQ20: =1+AQ19 -> 8 | AR20: INTERCHANGE | AS20: 0 | AT20: 0 | AU20: 0 | AV20: 0 | AW20: 0 | AX20: 0 | AY20: 0 | AZ20: 0 | BA20: 0 | BD20: =1+BD19 -> 8 | BE20: INTERCHANGE | BF20: 0 | BG20: 0 | BH20: 0 | BI20: 0 | BJ20: 0 | BK20: 0 | BL20: 0 | BM20: 0 | BN20: 0 | BR20: =1+BR19 -> 8 | BS20: INTERCHANGE | BT20: 0 | BU20: 0 | BV20: 0 | BW20: 0 | BX20: 0 | BY20: 0 | BZ20: 0 | CA20: 0 | CC20: 0 | CD20: =E20+CC20 -> 0
C21: 6 | D21: OTHER | E21: 24070.62461 | F21: 0 | G21: 0 | H21: 0 | I21: 0 | J21: 0 | K21: 0 | L21: 0 | M21: 21272.217 | N21: 9423.919 | Q21: =1+Q20 -> 9 | R21: OTHER | S21: -2062.443 | T21: 49056.598 | U21: 20608.372 | V21: -265.55164 | W21: 3259.863 | X21: -621.321 | Y21: 0 | Z21: 0 | AA21: -393.43666 | AB21: 0 | AE21: =1+AE20 -> 9 | AF21: OTHER | AG21: 0 | AH21: 0 | AI21: 0 | AJ21: 0 | AK21: 0 | AL21: -13.285 | AM21: 0 | AN21: 0 | AQ21: =1+AQ20 -> 9 | AR21: OTHER | AS21: 0 | AT21: 0 | AU21: 0 | AV21: 0 | AW21: 18235.264 | AX21: -4.407 | AY21: 0 | AZ21: 0 | BA21: 0 | BD21: =1+BD20 -> 9 | BE21: OTHER | BF21: 0 | BG21: 0 | BH21: 0 | BI21: 0 | BJ21: -5045.734 | BK21: 0 | BL21: 0 | BM21: 0 | BN21: 0 | BO21: 0 | BR21: =1+BR20 -> 9 | BS21: OTHER | BT21: 0 | BU21: 0 | BV21: -3.46133 | BW21: 0 | BX21: 0 | BY21: 0 | BZ21: 0 | CA21: 0 | CC21: 113446.5934 | CD21: =E21+CC21 -> 137517.218
C22: =1+C21 -> 7 | D22: TOTAL PRODUCTION EXPENSES | E22: =SUM(E9:E21) -> 848502.5849 | F22: 4106.707 | G22: -819.529 | H22: -1576.931367 | I22: 0 | J22: =SUM(J9:J21) -> 65738.41462 | K22: =SUM(K9:K21) -> -7529.613333 | L22: =SUM(L9:L21) -> 0 | M22: =SUM(M9:M21) -> 21272.217 | N22: 9423.919 | Q22: =1+Q21 -> 10 | R22: TOTAL PRODUCTION EXPENSES | S22: =SUM(S9:S21) -> -2062.443 | T22: =SUM(T9:T21) -> 49056.598 | U22: =SUM(U9:U21) -> 25696.654 | V22: =SUM(V9:V21) -> -265.55164 | W22: =SUM(W9:W21) -> 3259.863 | X22: =SUM(X9:X21) -> -621.321 | Y22: =SUM(Y9:Y21) -> 0 | Z22: 0 | AA22: =SUM(AA9:AA21) -> -393.43666 | AB22: 0 | AE22: =1+AE21 -> 10 | AF22: TOTAL PRODUCTION EXPENSES | AG22: =SUM(AG9:AG21) -> 0 | AH22: =SUM(AH9:AH21) -> 0 | AI22: =SUM(AI9:AI21) -> 0 | AJ22: 0 | AK22: =SUM(AK9:AK21) -> 0 | AL22: =SUM(AL9:AL21) -> -13.285 | AM22: 0 | AN22: =SUM(AN9:AN21) -> 0 | AQ22: =1+AQ21 -> 10 | AR22: TOTAL PRODUCTION EXPENSES | AS22: =SUM(AS9:AS21) -> 0 | AT22: =SUM(AT9:AT21) -> 0 | AU22: =SUM(AU9:AU21) -> 0 | AV22: =SUM(AV9:AV21) -> 0 | AW22: =SUM(AW9:AW21) -> 18235.264 | AX22: -4.407 | AY22: =SUM(AY9:AY21) -> 0 | AZ22: =SUM(AZ9:AZ21) -> 0 | BA22: 0 | BD22: =1+BD21 -> 10 | BE22: TOTAL PRODUCTION EXPENSES | BF22: =SUM(BF9:BF21) -> 0 | BG22: 0 | BH22: =SUM(BH9:BH21) -> 0 | BI22: =SUM(BI9:BI21) -> 0 | BJ22: =SUM(BJ9:BJ21) -> -5045.734 | BK22: =SUM(BK9:BK21) -> 0 | BL22: =SUM(BL9:BL21) -> 0 | BM22: 0 | BN22: 0 | BO22: 0 | BR22: =1+BR21 -> 10 | BS22: TOTAL PRODUCTION EXPENSES | BT22: =SUM(BT9:BT21) -> 0 | BU22: 0 | BV22: =SUM(BV9:BV21) -> -3.46133 | BW22: =SUM(BW9:BW21) -> 0 | BX22: =SUM(BX9:BX21) -> 0 | BY22: 0 | BZ22: 0 | CA22: 0 | CC22: =SUM(CC9:CC21) -> 178453.9233 | CD22: =SUM(CD9:CD21) -> 1026956.508
D24: TRANSMISSION EXPENSES: | R24: TRANSMISSION EXPENSES: | AF24: TRANSMISSION EXPENSES: | AR24: TRANSMISSION EXPENSES: | BE24: TRANSMISSION EXPENSES: | BS24: TRANSMISSION EXPENSES:
C25: =1+C22 -> 8 | D25: LABOR | E25: 6197.636 | F25: 114.144 | G25: -24.859 | H25: -139.6445588 | I25: 0 | J25: 0 | K25: 0 | L25: 0 | M25: 0 | N25: 0 | Q25: =1+Q22 -> 11 | R25: LABOR | S25: 0 | T25: 0 | U25: 0 | V25: 0 | W25: 0 | X25: 0 | Y25: 0 | Z25: 0 | AA25: 0 | AB25: 0 | AE25: =1+AE22 -> 11 | AF25: LABOR | AG25: 0 | AH25: 0 | AI25: 0 | AJ25: 0 | AK25: 0 | AL25: 0 | AM25: 0 | AN25: 0 | AQ25: =1+AQ22 -> 11 | AR25: LABOR | AS25: 0 | AT25: 0 | AU25: 0 | AV25: 0 | AW25: 0 | AX25: 0 | AY25: 0 | AZ25: 0 | BA25: 0 | BD25: =1+BD22 -> 11 | BE25: LABOR | BF25: 0 | BG25: 0 | BH25: 0 | BI25: 0 | BJ25: 0 | BK25: 0 | BL25: 0 | BM25: 0 | BN25: 0 | BR25: =1+BR22 -> 11 | BS25: LABOR | BT25: 0 | BU25: 0 | BV25: 0 | BW25: 0 | BX25: 0 | BY25: 0 | BZ25: 0 | CA25: 0 | CC25: =SUM(F25:N25,S25:AB25,AG25:AN25,AS25:BA25,BF25:BP25,BT25:CB25) -> -50.35955881 | CD25: =E25+CC25 -> 6147.276441
C26: =1+C25 -> 9 | D26: OTHER | E26: 98175.68635 | F26: 0 | G26: 0 | H26: 0 | I26: 0 | J26: 0 | K26: 2740.177 | L26: -157.951 | M26: 0 | N26: 0 | Q26: =1+Q25 -> 12 | R26: OTHER | S26: 0 | T26: 0 | U26: 0 | V26: 0 | W26: 0 | X26: 0 | Y26: 0 | Z26: 0 | AA26: 0 | AB26: 0 | AE26: =1+AE25 -> 12 | AF26: OTHER | AG26: 0 | AH26: 0 | AI26: 0 | AJ26: 0 | AK26: 0 | AL26: -0.323 | AM26: 0 | AN26: 0 | AQ26: =1+AQ25 -> 12 | AR26: OTHER | AS26: 0 | AT26: 0 | AU26: 0 | AV26: 0 | AW26: 1918.179 | AX26: -0.866 | AY26: 0 | AZ26: 0 | BA26: 0 | BD26: =1+BD25 -> 12 | BE26: OTHER | BF26: 0 | BG26: 0 | BH26: 0 | BI26: -504.308 | BJ26: 0 | BK26: 0 | BL26: 0 | BM26: 0 | BN26: 0 | BO26: 0 | BR26: =1+BR25 -> 12 | BS26: OTHER | BT26: 0 | BU26: 0 | BV26: 0 | BW26: 0 | BX26: -1.13517 | BY26: 0 | BZ26: 0 | CA26: 0 | CC26: =SUM(F26:N26,S26:AB26,AG26:AN26,AS26:BA26,BF26:BP26,BT26:CB26) -> 3993.77283 | CD26: =E26+CC26 -> 102169.4592
C27: =1+C26 -> 10 | D27: TOTAL TRANSMISSION EXPENSES | E27: =SUM(E25:E26) -> 104373.3224 | F27: 114.144 | G27: -24.859 | H27: -139.6445588 | I27: 0 | J27: =SUM(J25:J26) -> 0 | K27: =SUM(K25:K26) -> 2740.177 | L27: =SUM(L25:L26) -> -157.951 | M27: =SUM(M25:M26) -> 0 | N27: 0 | Q27: =1+Q26 -> 13 | R27: TOTAL TRANSMISSION EXPENSES | S27: =SUM(S25:S26) -> 0 | T27: =SUM(T25:T26) -> 0 | U27: =SUM(U25:U26) -> 0 | V27: =SUM(V25:V26) -> 0 | W27: =SUM(W25:W26) -> 0 | X27: =SUM(X25:X26) -> 0 | Y27: =SUM(Y25:Y26) -> 0 | Z27: 0 | AA27: =SUM(AA25:AA26) -> 0 | AB27: 0 | AE27: =1+AE26 -> 13 | AF27: TOTAL TRANSMISSION EXPENSES | AG27: =SUM(AG25:AG26) -> 0 | AH27: =SUM(AH25:AH26) -> 0 | AI27: =SUM(AI25:AI26) -> 0 | AJ27: 0 | AK27: =SUM(AK25:AK26) -> 0 | AL27: =SUM(AL25:AL26) -> -0.323 | AM27: 0 | AN27: =SUM(AN25:AN26) -> 0 | AQ27: =1+AQ26 -> 13 | AR27: TOTAL TRANSMISSION EXPENSES | AS27: =SUM(AS25:AS26) -> 0 | AT27: =SUM(AT25:AT26) -> 0 | AU27: =SUM(AU25:AU26) -> 0 | AV27: =SUM(AV25:AV26) -> 0 | AW27: =SUM(AW25:AW26) -> 1918.179 | AX27: -0.866 | AY27: =SUM(AY25:AY26) -> 0 | AZ27: =SUM(AZ25:AZ26) -> 0 | BA27: 0 | BD27: =1+BD26 -> 13 | BE27: TOTAL TRANSMISSION EXPENSES | BF27: =SUM(BF25:BF26) -> 0 | BG27: 0 | BH27: =SUM(BH25:BH26) -> 0 | BI27: =SUM(BI25:BI26) -> -504.308 | BJ27: =SUM(BJ25:BJ26) -> 0 | BK27: =SUM(BK25:BK26) -> 0 | BL27: =SUM(BL25:BL26) -> 0 | BM27: 0 | BN27: 0 | BO27: =SUM(BO25:BO26) -> 0 | BR27: =1+BR26 -> 13 | BS27: TOTAL TRANSMISSION EXPENSES | BT27: =SUM(BT25:BT26) -> 0 | BU27: 0 | BV27: =SUM(BV25:BV26) -> 0 | BW27: =SUM(BW25:BW26) -> 0 | BX27: =SUM(BX25:BX26) -> -1.13517 | BY27: 0 | BZ27: 0 | CA27: 0 | CC27: =SUM(CC25:CC26) -> 3943.413271 | CD27: =SUM(CD25:CD26) -> 108316.7356
D29: REGIONAL MARKET EXPENSES: | R29: REGIONAL MARKET EXPENSES: | AF29: REGIONAL MARKET EXPENSES: | AR29: REGIONAL MARKET EXPENSES: | BE29: REGIONAL MARKET EXPENSES: | BS29: REGIONAL MARKET EXPENSES:
C30: =1+C27 -> 11 | D30: LABOR | E30: 0 | F30: 0 | G30: 0 | H30: 0 | I30: 0 | J30: 0 | K30: 0 | L30: 0 | M30: 0 | N30: 0 | Q30: =1+Q27 -> 14 | R30: LABOR | S30: 0 | T30: 0 | U30: 0 | V30: 0 | W30: 0 | X30: 0 | Y30: 0 | Z30: 0 | AA30: 0 | AB30: 0 | AE30: =1+AE27 -> 14 | AF30: LABOR | AG30: 0 | AH30: 0 | AI30: 0 | AJ30: 0 | AK30: 0 | AL30: 0 | AM30: 0 | AN30: 0 | AQ30: =1+AQ27 -> 14 | AR30: LABOR | AS30: 0 | AT30: 0 | AU30: 0 | AV30: 0 | AW30: 0 | AX30: 0 | AY30: 0 | AZ30: 0 | BA30: 0 | BD30: =1+BD27 -> 14 | BE30: LABOR | BF30: 0 | BG30: 0 | BH30: 0 | BI30: 0 | BJ30: 0 | BK30: 0 | BL30: 0 | BM30: 0 | BN30: 0 | BO30: 0 | BR30: =1+BR27 -> 14 | BS30: LABOR | BT30: 0 | BU30: 0 | BV30: 0 | BW30: 0 | BX30: 0 | BY30: 0 | BZ30: 0 | CA30: 0 | CC30: =SUM(F30:N30,S30:AB30,AG30:AN30,AS30:BA30,BF30:BP30,BT30:CB30) -> 0 | CD30: =E30+CC30 -> 0
C31: =1+C30 -> 12 | D31: OTHER | E31: 7329.33314 | F31: 0 | G31: 0 | H31: 0 | I31: 0 | J31: 0 | K31: -653.034 | L31: 0 | M31: 0 | N31: 0 | Q31: =1+Q30 -> 15 | R31: OTHER | S31: 0 | T31: 0 | U31: 0 | V31: 0 | W31: 0 | X31: 0 | Y31: 0 | Z31: 0 | AA31: 0 | AB31: 0 | AE31: =1+AE30 -> 15 | AF31: OTHER | AG31: 0 | AH31: 0 | AI31: 0 | AJ31: 0 | AK31: 0 | AL31: 0 | AM31: 0 | AN31: 0 | AQ31: =1+AQ30 -> 15 | AR31: OTHER | AS31: 0 | AT31: 0 | AU31: 0 | AV31: 0 | AW31: 0 | AX31: 0 | AY31: 0 | AZ31: 0 | BA31: 0 | BD31: =1+BD30 -> 15 | BE31: OTHER | BF31: 0 | BG31: 0 | BH31: 0 | BI31: 0 | BJ31: 0 | BK31: 0 | BL31: 0 | BM31: 0 | BN31: 0 | BO31: 0 | BR31: =1+BR30 -> 15 | BS31: OTHER | BT31: 0 | BU31: 0 | BV31: 0 | BW31: 0 | BX31: 0 | BY31: 0 | BZ31: 0 | CA31: 0 | CC31: =SUM(F31:N31,S31:AB31,AG31:AN31,AS31:BA31,BF31:BP31,BT31:CB31) -> -653.034 | CD31: =E31+CC31 -> 6676.29914
C32: =1+C31 -> 13 | D32: TOTAL REGIONAL MARKET EXPENSES | E32: =SUM(E30:E31) -> 7329.33314 | F32: 0 | G32: 0 | H32: 0 | I32: 0 | J32: =SUM(J30:J31) -> 0 | K32: =SUM(K30:K31) -> -653.034 | L32: =SUM(L30:L31) -> 0 | M32: =SUM(M30:M31) -> 0 | N32: 0 | Q32: =1+Q31 -> 16 | R32: TOTAL REGIONAL MARKET EXPENSES | S32: =SUM(S30:S31) -> 0 | T32: =SUM(T30:T31) -> 0 | U32: =SUM(U30:U31) -> 0 | V32: =SUM(V30:V31) -> 0 | W32: =SUM(W30:W31) -> 0 | X32: =SUM(X30:X31) -> 0 | Y32: =SUM(Y30:Y31) -> 0 | Z32: 0 | AA32: =SUM(AA30:AA31) -> 0 | AB32: 0 | AE32: =1+AE31 -> 16 | AF32: TOTAL REGIONAL MARKET EXPENSES | AG32: =SUM(AG30:AG31) -> 0 | AH32: =SUM(AH30:AH31) -> 0 | AI32: =SUM(AI30:AI31) -> 0 | AJ32: 0 | AK32: =SUM(AK30:AK31) -> 0 | AL32: =SUM(AL30:AL31) -> 0 | AM32: 0 | AN32: =SUM(AN30:AN31) -> 0 | AQ32: =1+AQ31 -> 16 | AR32: TOTAL REGIONAL MARKET EXPENSES | AS32: =SUM(AS30:AS31) -> 0 | AT32: =SUM(AT30:AT31) -> 0 | AU32: =SUM(AU30:AU31) -> 0 | AV32: =SUM(AV30:AV31) -> 0 | AW32: =SUM(AW30:AW31) -> 0 | AX32: 0 | AY32: =SUM(AY30:AY31) -> 0 | AZ32: =SUM(AZ30:AZ31) -> 0 | BA32: 0 | BD32: =1+BD31 -> 16 | BE32: TOTAL REGIONAL MARKET EXPENSES | BF32: =SUM(BF30:BF31) -> 0 | BG32: 0 | BH32: =SUM(BH30:BH31) -> 0 | BI32: =SUM(BI30:BI31) -> 0 | BJ32: =SUM(BJ30:BJ31) -> 0 | BK32: =SUM(BK30:BK31) -> 0 | BL32: =SUM(BL30:BL31) -> 0 | BM32: 0 | BN32: 0 | BO32: 0 | BR32: =1+BR31 -> 16 | BS32: TOTAL REGIONAL MARKET EXPENSES | BT32: =SUM(BT30:BT31) -> 0 | BU32: 0 | BV32: =SUM(BV30:BV31) -> 0 | BW32: =SUM(BW30:BW31) -> 0 | BX32: =SUM(BX30:BX31) -> 0 | BY32: 0 | BZ32: 0 | CA32: 0 | CC32: =SUM(CC30:CC31) -> -653.034 | CD32: =SUM(CD30:CD31) -> 6676.29914
D34: DISTRIBUTION EXPENSES: | R34: DISTRIBUTION EXPENSES: | AF34: DISTRIBUTION EXPENSES: | AR34: DISTRIBUTION EXPENSES: | BE34: DISTRIBUTION EXPENSES: | BS34: DISTRIBUTION EXPENSES:
C35: =1+C32 -> 14 | D35: LABOR | E35: 63117.09094 | F35: 1318.973 | G35: -253.163 | H35: -431.6948575 | I35: 0 | J35: 0 | K35: 0 | L35: 0 | M35: 0 | N35: 0 | Q35: =1+Q32 -> 17 | R35: LABOR | S35: 0 | T35: 0 | U35: 0 | V35: 0 | W35: 0 | X35: 0 | Y35: 0 | Z35: 0 | AA35: 0 | AB35: 0 | AE35: =1+AE32 -> 17 | AF35: LABOR | AG35: 0 | AH35: 0 | AI35: 0 | AJ35: 0 | AK35: 0 | AL35: 0 | AM35: 0 | AN35: 0 | AQ35: =1+AQ32 -> 17 | AR35: LABOR | AS35: 0 | AT35: 0 | AU35: 0 | AV35: 0 | AW35: 0 | AX35: 0 | AY35: 0 | AZ35: 0 | BA35: 0 | BD35: =1+BD32 -> 17 | BE35: LABOR | BF35: 0 | BG35: 0 | BH35: 0 | BI35: 0 | BJ35: 0 | BK35: 0 | BL35: 0 | BM35: 0 | BN35: 0 | BO35: 0 | BR35: =1+BR32 -> 17 | BS35: LABOR | BT35: 0 | BU35: 0 | BV35: 0 | BW35: 0 | BX35: 0 | BY35: 0 | BZ35: 0 | CA35: 0 | CC35: =SUM(F35:N35,S35:AB35,AG35:AN35,AS35:BA35,BF35:BP35,BT35:CB35) -> 634.1151425 | CD35: =E35+CC35 -> 63751.20608
C36: =1+C35 -> 15 | D36: OTHER | E36: 78878.01028 | F36: 0 | G36: 0 | H36: 0 | I36: 0 | J36: 0 | K36: 0 | L36: 0 | M36: 0 | N36: 0 | Q36: =1+Q35 -> 18 | R36: OTHER | S36: 0 | T36: 0 | U36: 0 | V36: 0 | W36: 0 | X36: 0 | Y36: 0 | Z36: 0 | AA36: -531.781 | AB36: 1617.848 | AE36: =1+AE35 -> 18 | AF36: OTHER | AG36: -1577.384 | AH36: 0 | AI36: 0 | AJ36: 0 | AK36: 0 | AL36: -0.157 | AM36: 0 | AN36: 0 | AQ36: =1+AQ35 -> 18 | AR36: OTHER | AS36: 0 | AT36: 0 | AU36: 0 | AV36: 0 | AW36: 0 | AX36: -3.428 | AY36: 0 | AZ36: 0 | BA36: 0 | BD36: =1+BD35 -> 18 | BE36: OTHER | BF36: 0 | BG36: 0 | BH36: 0 | BI36: 12.622 | BJ36: 0 | BK36: 0 | BL36: 0 | BM36: 0 | BN36: 0 | BO36: 0 | BR36: =1+BR35 -> 18 | BS36: OTHER | BT36: 0 | BU36: 0 | BV36: -3.0463 | BW36: 0 | BX36: -1.90119 | BY36: 0 | BZ36: 0 | CA36: 0 | CC36: =SUM(F36:N36,S36:AB36,AG36:AN36,AS36:BA36,BF36:BP36,BT36:CB36) -> -487.22749 | CD36: =E36+CC36 -> 78390.78279
C37: =1+C36 -> 16 | D37: TOTAL DISTRIBUTION EXPENSES | E37: =SUM(E35:E36) -> 141995.1012 | F37: 1318.973 | G37: -253.163 | H37: -431.6948575 | I37: 0 | J37: =SUM(J35:J36) -> 0 | K37: =SUM(K35:K36) -> 0 | L37: =SUM(L35:L36) -> 0 | M37: =SUM(M35:M36) -> 0 | N37: 0 | Q37: =1+Q36 -> 19 | R37: TOTAL DISTRIBUTION EXPENSES | S37: =SUM(S35:S36) -> 0 | T37: =SUM(T35:T36) -> 0 | U37: =SUM(U35:U36) -> 0 | V37: =SUM(V35:V36) -> 0 | W37: =SUM(W35:W36) -> 0 | X37: =SUM(X35:X36) -> 0 | Y37: =SUM(Y35:Y36) -> 0 | Z37: 0 | AA37: =SUM(AA35:AA36) -> -531.781 | AB37: 1617.848 | AE37: =1+AE36 -> 19 | AF37: TOTAL DISTRIBUTION EXPENSES | AG37: =SUM(AG35:AG36) -> -1577.384 | AH37: =SUM(AH35:AH36) -> 0 | AI37: =SUM(AI35:AI36) -> 0 | AJ37: 0 | AK37: =SUM(AK35:AK36) -> 0 | AL37: -0.157 | AM37: 0 | AN37: =SUM(AN35:AN36) -> 0 | AQ37: =1+AQ36 -> 19 | AR37: TOTAL DISTRIBUTION EXPENSES | AS37: =SUM(AS35:AS36) -> 0 | AT37: =SUM(AT35:AT36) -> 0 | AU37: =SUM(AU35:AU36) -> 0 | AV37: =SUM(AV35:AV36) -> 0 | AW37: =SUM(AW35:AW36) -> 0 | AX37: -3.428 | AY37: =SUM(AY35:AY36) -> 0 | AZ37: =SUM(AZ35:AZ36) -> 0 | BA37: 0 | BD37: =1+BD36 -> 19 | BE37: TOTAL DISTRIBUTION EXPENSES | BF37: =SUM(BF35:BF36) -> 0 | BG37: 0 | BH37: =SUM(BH35:BH36) -> 0 | BI37: =SUM(BI35:BI36) -> 12.622 | BJ37: =SUM(BJ35:BJ36) -> 0 | BK37: =SUM(BK35:BK36) -> 0 | BL37: =SUM(BL35:BL36) -> 0 | BM37: 0 | BN37: 0 | BO37: 0 | BR37: =1+BR36 -> 19 | BS37: TOTAL DISTRIBUTION EXPENSES | BT37: =SUM(BT35:BT36) -> 0 | BU37: 0 | BV37: =SUM(BV35:BV36) -> -3.0463 | BW37: =SUM(BW35:BW36) -> 0 | BX37: =SUM(BX35:BX36) -> -1.90119 | BY37: 0 | BZ37: 0 | CA37: 0 | CC37: =SUM(CC35:CC36) -> 146.8876525 | CD37: =SUM(CD35:CD36) -> 142141.9889
D39: CUSTOMER ACCOUNTING EXPENSES: | R39: CUSTOMER ACCOUNTING EXPENSES: | AF39: CUSTOMER ACCOUNTING EXPENSES: | AR39: CUSTOMER ACCOUNTING EXPENSES: | BE39: CUSTOMER ACCOUNTING EXPENSES: | BS39: CUSTOMER ACCOUNTING EXPENSES:
C40: =1+C37 -> 17 | D40: LABOR | E40: 21077.867 | F40: 457.047 | G40: -84.543 | H40: -131.223751 | I40: 0 | J40: 0 | K40: 0 | L40: 0 | M40: 0 | N40: 0 | Q40: =1+Q37 -> 20 | R40: LABOR | S40: 0 | T40: 0 | U40: 0 | V40: 0 | W40: 0 | X40: 0 | Y40: 0 | Z40: 0 | AA40: 0 | AB40: 0 | AE40: =1+AE37 -> 20 | AF40: LABOR | AG40: 0 | AH40: 0 | AI40: 0 | AJ40: 0 | AK40: 0 | AL40: 0 | AM40: 0 | AN40: 0 | AQ40: =1+AQ37 -> 20 | AR40: LABOR | AS40: 0 | AT40: 0 | AU40: 0 | AV40: 0 | AW40: 0 | AX40: 0 | AY40: 0 | AZ40: 0 | BA40: 0 | BD40: =1+BD37 -> 20 | BE40: LABOR | BF40: 0 | BG40: 0 | BH40: 0 | BI40: 0 | BJ40: 0 | BK40: 0 | BL40: 0 | BM40: 0 | BN40: 0 | BO40: 0 | BR40: =1+BR37 -> 20 | BS40: LABOR | BT40: 0 | BU40: 0 | BV40: 0 | BW40: 0 | BX40: 0 | BY40: 0 | BZ40: 0 | CA40: 0 | CC40: =SUM(F40:N40,S40:AB40,AG40:AN40,AS40:BA40,BF40:BP40,BT40:CB40) -> 241.280249 | CD40: =E40+CC40 -> 21319.14725
C41: =1+C40 -> 18 | D41: OTHER | E41: 43501.55232 | F41: 0 | G41: 0 | H41: 0 | I41: 0 | J41: 0 | K41: 0 | L41: 0 | M41: 0 | N41: 0 | Q41: =1+Q40 -> 21 | R41: OTHER | S41: 0 | T41: 0 | U41: 0 | V41: 0 | W41: 0 | X41: 0 | Y41: 0 | Z41: 0 | AA41: 0 | AB41: 0 | AE41: =1+AE40 -> 21 | AF41: OTHER | AG41: 0 | AH41: 763.703 | AI41: 0 | AJ41: 0 | AK41: -6545.616 | AL41: -4.42 | AM41: 0 | AN41: 0 | AQ41: =1+AQ40 -> 21 | AR41: OTHER | AS41: 0 | AT41: 0 | AU41: 0 | AV41: 0 | AW41: 0 | AX41: 0 | AY41: 0 | AZ41: 0 | BA41: 0 | BD41: =1+BD40 -> 21 | BE41: OTHER | BF41: 0 | BG41: 0 | BH41: 0 | BI41: 0.791 | BJ41: 0 | BK41: 0 | BL41: 0 | BM41: 4287.776889 | BN41: 0 | BO41: 0 | BR41: =1+BR40 -> 21 | BS41: OTHER | BT41: 0 | BU41: -5098.403 | BV41: 0 | BW41: 0 | BX41: 0 | BY41: 98.202 | BZ41: 0 | CA41: 0 | CC41: =SUM(F41:N41,S41:AB41,AG41:AN41,AS41:BA41,BF41:BP41,BT41:CB41) -> -6497.966111 | CD41: =E41+CC41 -> 37003.58621
C42: =1+C41 -> 19 | D42: TOTAL CUSTOMER ACCOUNTING EXPENSES | E42: =SUM(E40:E41) -> 64579.41932 | F42: 457.047 | G42: -84.543 | H42: -131.223751 | I42: 0 | J42: =SUM(J40:J41) -> 0 | K42: =SUM(K40:K41) -> 0 | L42: =SUM(L40:L41) -> 0 | M42: =SUM(M40:M41) -> 0 | N42: 0 | Q42: =1+Q41 -> 22 | R42: TOTAL CUSTOMER ACCOUNTING EXPENSES | S42: =SUM(S40:S41) -> 0 | T42: =SUM(T40:T41) -> 0 | U42: =SUM(U40:U41) -> 0 | V42: =SUM(V40:V41) -> 0 | W42: =SUM(W40:W41) -> 0 | X42: =SUM(X40:X41) -> 0 | Y42: =SUM(Y40:Y41) -> 0 | Z42: 0 | AA42: =SUM(AA40:AA41) -> 0 | AB42: 0 | AE42: =1+AE41 -> 22 | AF42: TOTAL CUSTOMER ACCOUNTING EXPENSES | AG42: =SUM(AG40:AG41) -> 0 | AH42: =SUM(AH40:AH41) -> 763.703 | AI42: =SUM(AI40:AI41) -> 0 | AJ42: 0 | AK42: =SUM(AK40:AK41) -> -6545.616 | AL42: -4.42 | AM42: 0 | AN42: =SUM(AN40:AN41) -> 0 | AQ42: =1+AQ41 -> 22 | AR42: TOTAL CUSTOMER ACCOUNTING EXPENSES | AS42: =SUM(AS40:AS41) -> 0 | AT42: =SUM(AT40:AT41) -> 0 | AU42: =SUM(AU40:AU41) -> 0 | AV42: =SUM(AV40:AV41) -> 0 | AW42: =SUM(AW40:AW41) -> 0 | AX42: 0 | AY42: =SUM(AY40:AY41) -> 0 | AZ42: =SUM(AZ40:AZ41) -> 0 | BA42: 0 | BD42: =1+BD41 -> 22 | BE42: TOTAL CUSTOMER ACCOUNTING EXPENSES | BF42: =SUM(BF40:BF41) -> 0 | BG42: 0 | BH42: =SUM(BH40:BH41) -> 0 | BI42: =SUM(BI40:BI41) -> 0.791 | BJ42: =SUM(BJ40:BJ41) -> 0 | BK42: =SUM(BK40:BK41) -> 0 | BL42: =SUM(BL40:BL41) -> 0 | BM42: 4287.776889 | BN42: 0 | BO42: 0 | BR42: =1+BR41 -> 22 | BS42: TOTAL CUSTOMER ACCOUNTING EXPENSES | BT42: =SUM(BT40:BT41) -> 0 | BU42: -5098.403 | BV42: =SUM(BV40:BV41) -> 0 | BW42: =SUM(BW40:BW41) -> 0 | BX42: =SUM(BX40:BX41) -> 0 | BY42: 98.202 | BZ42: 0 | CA42: 0 | CC42: =SUM(CC40:CC41) -> -6256.685862 | CD42: =SUM(CD40:CD41) -> 58322.73346
D44: CUSTOMER SERV. & INFO. EXPENSES: | R44: CUSTOMER SERV. & INFO. EXPENSES: | AF44: CUSTOMER SERV. & INFO. EXPENSES: | AR44: CUSTOMER SERV. & INFO. EXPENSES: | BE44: CUSTOMER SERV. & INFO. EXPENSES: | BS44: CUSTOMER SERV. & INFO. EXPENSES:
A45: SCHEDULE MJL-S11-1 | C45: =1+C42 -> 20 | D45: LABOR | E45: 6936.523 | F45: 105.477 | G45: -27.822 | H45: -171.8255856 | I45: 0 | J45: 0 | K45: 0 | L45: 0 | M45: 0 | N45: 0 | O45: SCHEDULE MJL-S11-2 | Q45: =1+Q42 -> 23 | R45: LABOR | S45: 0 | T45: 0 | U45: 0 | V45: 0 | W45: 0 | X45: 0 | Y45: 0 | Z45: 0 | AA45: 0 | AB45: 0 | AC45: SCHEDULE MJL-S11-3 | AE45: =1+AE42 -> 23 | AF45: LABOR | AG45: 0 | AH45: 0 | AI45: 0 | AJ45: 0 | AK45: 0 | AL45: 0 | AM45: 0 | AN45: 0 | AO45: SCHEDULE MJL-S11-4 | AQ45: =1+AQ42 -> 23 | AR45: LABOR | AS45: 0 | AT45: 0 | AU45: 0 | AV45: 0 | AW45: 0 | AX45: 0 | AY45: 0 | AZ45: 0 | BA45: 0 | BB45: SCHEDULE MJL-S11-5 | BD45: =1+BD42 -> 23 | BE45: LABOR | BF45: 0 | BG45: 0 | BH45: 0 | BI45: 0 | BJ45: 0 | BK45: 0 | BL45: 0 | BM45: 0 | BN45: 0 | BO45: 0 | BP45: SCHEDULE MJL-S11-6 | BR45: =1+BR42 -> 23 | BS45: LABOR | BT45: 0 | BU45: 0 | BV45: 0 | BW45: 0 | BX45: 0 | BY45: 0 | BZ45: 0 | CA45: 0 | CC45: =SUM(F45:N45,S45:AB45,AG45:AN45,AS45:BA45,BF45:BP45,BT45:CB45) -> -94.17058557 | CD45: =E45+CC45 -> 6842.352414
C46: =1+C45 -> 21 | D46: OTHER | E46: 79410.35787 | F46: 0 | G46: 0 | H46: 0 | I46: 0 | J46: 0 | K46: 0 | L46: 0 | M46: 0 | N46: 0 | Q46: =1+Q45 -> 24 | R46: OTHER | S46: 0 | T46: 0 | U46: 0 | V46: 0 | W46: 0 | X46: 0 | Y46: -5961.195 | Z46: 1337.65 | AA46: 0 | AB46: 0 | AE46: =1+AE45 -> 24 | AF46: OTHER | AG46: 0 | AH46: 0 | AI46: -69518.871 | AJ46: 0 | AK46: 0 | AL46: -0.135 | AM46: 0 | AN46: 0 | AQ46: =1+AQ45 -> 24 | AR46: OTHER | AS46: 0 | AT46: 0 | AU46: 0 | AV46: 0 | AW46: 2937.306 | AX46: -0.519 | AY46: 0 | AZ46: 0 | BA46: 0 | BD46: =1+BD45 -> 24 | BE46: OTHER | BF46: 0 | BG46: 0 | BH46: 0 | BI46: 1.431 | BJ46: 0 | BK46: 0 | BL46: 0 | BM46: 0 | BN46: 0 | BO46: 0 | BR46: =1+BR45 -> 24 | BS46: OTHER | BT46: 0 | BU46: 0 | BV46: -0.64065 | BW46: -119.382 | BX46: 0 | BY46: 0 | BZ46: 0 | CA46: 0 | CC46: =SUM(F46:N46,S46:AB46,AG46:AN46,AS46:BA46,BF46:BP46,BT46:CB46) -> -71324.35565 | CD46: =E46+CC46 -> 8086.00222
C47: =1+C46 -> 22 | D47: TOTAL CUSTOMER SERV. & INFO. EXPENSES | E47: =SUM(E45:E46) -> 86346.88087 | F47: 105.477 | G47: -27.822 | H47: -171.8255856 | I47: 0 | J47: =SUM(J45:J46) -> 0 | K47: =SUM(K45:K46) -> 0 | L47: =SUM(L45:L46) -> 0 | M47: =SUM(M45:M46) -> 0 | N47: 0 | Q47: =1+Q46 -> 25 | R47: TOTAL CUSTOMER SERV. & INFO. EXPENSES | S47: =SUM(S45:S46) -> 0 | T47: =SUM(T45:T46) -> 0 | U47: =SUM(U45:U46) -> 0 | V47: =SUM(V45:V46) -> 0 | W47: =SUM(W45:W46) -> 0 | X47: =SUM(X45:X46) -> 0 | Y47: =SUM(Y45:Y46) -> -5961.195 | Z47: 1337.65 | AA47: =SUM(AA45:AA46) -> 0 | AB47: 0 | AE47: =1+AE46 -> 25 | AF47: TOTAL CUSTOMER SERV. & INFO. EXPENSES | AG47: =SUM(AG45:AG46) -> 0 | AH47: =SUM(AH45:AH46) -> 0 | AI47: =SUM(AI45:AI46) -> -69518.871 | AJ47: 0 | AK47: =SUM(AK45:AK46) -> 0 | AL47: -0.135 | AM47: 0 | AN47: =SUM(AN45:AN46) -> 0 | AQ47: =1+AQ46 -> 25 | AR47: TOTAL CUSTOMER SERV. & INFO. EXPENSES | AS47: =SUM(AS45:AS46) -> 0 | AT47: =SUM(AT45:AT46) -> 0 | AU47: =SUM(AU45:AU46) -> 0 | AV47: =SUM(AV45:AV46) -> 0 | AW47: =SUM(AW45:AW46) -> 2937.306 | AX47: -0.519 | AY47: =SUM(AY45:AY46) -> 0 | AZ47: =SUM(AZ45:AZ46) -> 0 | BA47: 0 | BD47: =1+BD46 -> 25 | BE47: TOTAL CUSTOMER SERV. & INFO. EXPENSES | BF47: =SUM(BF45:BF46) -> 0 | BG47: 0 | BH47: =SUM(BH45:BH46) -> 0 | BI47: =SUM(BI45:BI46) -> 1.431 | BJ47: =SUM(BJ45:BJ46) -> 0 | BK47: =SUM(BK45:BK46) -> 0 | BL47: =SUM(BL45:BL46) -> 0 | BM47: 0 | BN47: 0 | BO47: =SUM(BO45:BO46) -> 0 | BR47: =1+BR46 -> 25 | BS47: TOTAL CUSTOMER SERV. & INFO. EXPENSES | BT47: =SUM(BT45:BT46) -> 0 | BU47: 0 | BV47: =SUM(BV45:BV46) -> -0.64065 | BW47: =SUM(BW45:BW46) -> -119.382 | BX47: =SUM(BX45:BX46) -> 0 | BY47: 0 | BZ47: 0 | CA47: 0 | CC47: =SUM(CC45:CC46) -> -71418.52624 | CD47: =SUM(CD45:CD46) -> 14928.35463
D49: SALES EXPENSES: | R49: SALES EXPENSES: | AF49: SALES EXPENSES: | AR49: SALES EXPENSES: | BE49: SALES EXPENSES: | BS49: SALES EXPENSES:
C50: =1+C47 -> 23 | D50: LABOR | E50: 184.504 | F50: 3.019 | G50: -0.74 | H50: 0 | I50: 0 | J50: 0 | K50: 0 | L50: 0 | M50: 0 | N50: 0 | Q50: =1+Q47 -> 26 | R50: LABOR | S50: 0 | T50: 0 | U50: 0 | V50: 0 | W50: 0 | X50: 0 | Y50: 0 | Z50: 0 | AA50: 0 | AB50: 0 | AE50: =1+AE47 -> 26 | AF50: LABOR | AG50: 0 | AH50: 0 | AI50: 0 | AJ50: 0 | AK50: 0 | AL50: 0 | AM50: 0 | AN50: 0 | AQ50: =1+AQ47 -> 26 | AR50: LABOR | AS50: 0 | AT50: 0 | AU50: 0 | AV50: 0 | AW50: 0 | AX50: 0 | AY50: 0 | AZ50: 0 | BA50: 0 | BD50: =1+BD47 -> 26 | BE50: LABOR | BF50: 0 | BG50: 0 | BH50: 0 | BI50: 0 | BJ50: 0 | BK50: 0 | BL50: 0 | BM50: 0 | BN50: 0 | BO50: 0 | BR50: =1+BR47 -> 26 | BS50: LABOR | BT50: 0 | BU50: 0 | BV50: 0 | BW50: 0 | BX50: 0 | BY50: 0 | BZ50: 0 | CA50: 0 | CC50: =SUM(F50:N50,S50:AB50,AG50:AN50,AS50:BA50,BF50:BP50,BT50:CB50) -> 2.279 | CD50: =E50+CC50 -> 186.783
C51: =1+C50 -> 24 | D51: OTHER | E51: 95.13754 | F51: 0 | G51: 0 | H51: 0 | I51: 0 | J51: 0 | K51: 0 | L51: 0 | M51: 0 | N51: 0 | Q51: =1+Q50 -> 27 | R51: OTHER | S51: 0 | T51: 0 | U51: 0 | V51: 0 | W51: 0 | X51: 0 | Y51: 0 | Z51: 0 | AA51: 0 | AB51: 0 | AE51: =1+AE50 -> 27 | AF51: OTHER | AG51: 0 | AH51: 0 | AI51: 0 | AJ51: 0 | AK51: 0 | AL51: 0 | AM51: 0 | AN51: 0 | AQ51: =1+AQ50 -> 27 | AR51: OTHER | AS51: 0 | AT51: 0 | AU51: 0 | AV51: 0 | AW51: 0 | AX51: 0 | AY51: 0 | AZ51: 0 | BA51: 0 | BD51: =1+BD50 -> 27 | BE51: OTHER | BF51: 0 | BG51: 0 | BH51: 0 | BI51: 0 | BJ51: 0 | BK51: 0 | BL51: 0 | BM51: 0 | BN51: 0 | BO51: 0 | BR51: =1+BR50 -> 27 | BS51: OTHER | BT51: 0 | BU51: 0 | BV51: 0 | BW51: 0 | BX51: 0 | BY51: 0 | BZ51: 0 | CA51: 0 | CC51: =SUM(F51:N51,S51:AB51,AG51:AN51,AS51:BA51,BF51:BP51,BT51:CB51) -> 0 | CD51: =E51+CC51 -> 95.13754
C52: =1+C51 -> 25 | D52: TOTAL SALES EXPENSES | E52: =SUM(E50:E51) -> 279.64154 | F52: 3.019 | G52: -0.74 | H52: 0 | I52: 0 | J52: =SUM(J50:J51) -> 0 | K52: =SUM(K50:K51) -> 0 | L52: =SUM(L50:L51) -> 0 | M52: =SUM(M50:M51) -> 0 | N52: 0 | Q52: =1+Q51 -> 28 | R52: TOTAL SALES EXPENSES | S52: =SUM(S50:S51) -> 0 | T52: =SUM(T50:T51) -> 0 | U52: =SUM(U50:U51) -> 0 | V52: =SUM(V50:V51) -> 0 | W52: =SUM(W50:W51) -> 0 | X52: =SUM(X50:X51) -> 0 | Y52: =SUM(Y50:Y51) -> 0 | Z52: 0 | AA52: =SUM(AA50:AA51) -> 0 | AB52: 0 | AE52: =1+AE51 -> 28 | AF52: TOTAL SALES EXPENSES | AG52: =SUM(AG50:AG51) -> 0 | AH52: =SUM(AH50:AH51) -> 0 | AI52: =SUM(AI50:AI51) -> 0 | AJ52: 0 | AK52: =SUM(AK50:AK51) -> 0 | AL52: =SUM(AL50:AL51) -> 0 | AM52: 0 | AN52: =SUM(AN50:AN51) -> 0 | AQ52: =1+AQ51 -> 28 | AR52: TOTAL SALES EXPENSES | AS52: =SUM(AS50:AS51) -> 0 | AT52: =SUM(AT50:AT51) -> 0 | AU52: =SUM(AU50:AU51) -> 0 | AV52: =SUM(AV50:AV51) -> 0 | AW52: =SUM(AW50:AW51) -> 0 | AX52: 0 | AY52: =SUM(AY50:AY51) -> 0 | AZ52: =SUM(AZ50:AZ51) -> 0 | BA52: 0 | BD52: =1+BD51 -> 28 | BE52: TOTAL SALES EXPENSES | BF52: =SUM(BF50:BF51) -> 0 | BG52: 0 | BH52: =SUM(BH50:BH51) -> 0 | BI52: =SUM(BI50:BI51) -> 0 | BJ52: =SUM(BJ50:BJ51) -> 0 | BK52: =SUM(BK50:BK51) -> 0 | BL52: =SUM(BL50:BL51) -> 0 | BM52: 0 | BN52: 0 | BO52: 0 | BR52: =1+BR51 -> 28 | BS52: TOTAL SALES EXPENSES | BT52: =SUM(BT50:BT51) -> 0 | BU52: 0 | BV52: =SUM(BV50:BV51) -> 0 | BW52: =SUM(BW50:BW51) -> 0 | BX52: =SUM(BX50:BX51) -> 0 | BY52: 0 | BZ52: 0 | CA52: 0 | CC52: =SUM(CC50:CC51) -> 2.279 | CD52: =SUM(CD50:CD51) -> 281.92054
D54: ADMINISTRATIVE & GENERAL EXPENSES: | R54: ADMINISTRATIVE & GENERAL EXPENSES: | AF54: ADMINISTRATIVE & GENERAL EXPENSES: | AR54: ADMINISTRATIVE & GENERAL EXPENSES: | BE54: ADMINISTRATIVE & GENERAL EXPENSES: | BS54: ADMINISTRATIVE & GENERAL EXPENSES:
C55: =1+C52 -> 26 | D55: LABOR | E55: 68835.90354 | F55: 1070.837 | G55: -276.101 | H55: -3240.33107 | I55: -1071.399 | J55: 0 | K55: 0 | L55: 0 | M55: 0 | N55: 0 | Q55: =1+Q52 -> 29 | R55: LABOR | S55: 0 | T55: 0 | U55: 0 | V55: 0 | W55: 0 | X55: 0 | Y55: 0 | Z55: 0 | AA55: 0 | AB55: 0 | AE55: =1+AE52 -> 29 | AF55: LABOR | AG55: 0 | AH55: 0 | AI55: 0 | AJ55: 0 | AK55: 0 | AL55: 0 | AM55: 0 | AN55: 0 | AQ55: =1+AQ52 -> 29 | AR55: LABOR | AS55: 0 | AT55: 0 | AU55: 0 | AV55: 0 | AW55: 0 | AX55: 0 | AY55: 0 | AZ55: 0 | BA55: 0 | BD55: =1+BD52 -> 29 | BE55: LABOR | BF55: 0 | BG55: 0 | BH55: 0 | BI55: 0 | BJ55: 0 | BK55: 0 | BL55: 0 | BM55: 0 | BN55: 0 | BO55: 0 | BR55: =1+BR52 -> 29 | BS55: LABOR | BT55: 0 | BU55: 0 | BV55: 0 | BW55: 0 | BX55: 0 | BY55: 0 | BZ55: 0 | CA55: 0 | CC55: =SUM(F55:N55,S55:AB55,AG55:AN55,AS55:BA55,BF55:BP55,BT55:CB55) -> -3516.99407 | CD55: =E55+CC55 -> 65318.90947
C56: =1+C55 -> 27 | D56: OTHER | E56: 123773.3566 | F56: 0 | G56: 0 | H56: 0 | I56: 0 | J56: 0 | K56: 0 | L56: 0 | M56: 0 | N56: 0 | Q56: =1+Q55 -> 30 | R56: OTHER | S56: 0 | T56: 0 | U56: 0 | V56: 0 | W56: 0 | X56: 0 | Y56: 0 | Z56: 0 | AA56: 0 | AB56: 0 | AE56: =1+AE55 -> 30 | AF56: OTHER | AG56: 0 | AH56: 0 | AI56: 0 | AJ56: 0 | AK56: 0 | AL56: -124.853 | AM56: 621.058 | AN56: 3563.254 | AQ56: =1+AQ55 -> 30 | AR56: OTHER | AS56: -1533.958 | AT56: 438.76 | AU56: 2180.597 | AV56: 7329.278 | AW56: 0 | AX56: -5.986 | AY56: 139.647 | AZ56: -625.138 | BA56: -361.853 | BD56: =1+BD55 -> 30 | BE56: OTHER | BF56: -12.095 | BG56: -2819.858 | BH56: -319.396 | BI56: 612.324 | BJ56: -2166.654 | BK56: 11458.268 | BL56: 10.837 | BM56: 0 | BN56: 1.04762 | BO56: 79.77 | BR56: =1+BR55 -> 30 | BS56: OTHER | BT56: 769.885 | BU56: 0 | BV56: -276.22441 | BW56: -43.5 | BX56: -83.09499 | BY56: 0 | BZ56: -1572.147 | CA56: 542.353 | CC56: =SUM(F56:N56,S56:AB56,AG56:AN56,AS56:BA56,BF56:BP56,BT56:CB56) -> 17802.32122 | CD56: =E56+CC56 -> 141575.6778
C57: =1+C56 -> 28 | D57: TOTAL ADMINISTRATIVE & GENERAL EXPENSES | E57: =SUM(E55:E56) -> 192609.2602 | F57: 1070.837 | G57: -276.101 | H57: -3240.33107 | I57: -1071.399 | J57: =SUM(J55:J56) -> 0 | K57: =SUM(K55:K56) -> 0 | L57: =SUM(L55:L56) -> 0 | M57: =SUM(M55:M56) -> 0 | N57: 0 | Q57: =1+Q56 -> 31 | R57: TOTAL ADMINISTRATIVE & GENERAL EXPENSES | S57: =SUM(S55:S56) -> 0 | T57: =SUM(T55:T56) -> 0 | U57: =SUM(U55:U56) -> 0 | V57: =SUM(V55:V56) -> 0 | W57: =SUM(W55:W56) -> 0 | X57: =SUM(X55:X56) -> 0 | Y57: =SUM(Y55:Y56) -> 0 | Z57: 0 | AA57: =SUM(AA55:AA56) -> 0 | AB57: =SUM(AB55:AB56) -> 0 | AE57: =1+AE56 -> 31 | AF57: TOTAL ADMINISTRATIVE & GENERAL EXPENSES | AG57: =SUM(AG55:AG56) -> 0 | AH57: =SUM(AH55:AH56) -> 0 | AI57: =SUM(AI55:AI56) -> 0 | AJ57: 0 | AK57: =SUM(AK55:AK56) -> 0 | AL57: =SUM(AL55:AL56) -> -124.853 | AM57: 621.058 | AN57: =SUM(AN55:AN56) -> 3563.254 | AQ57: =1+AQ56 -> 31 | AR57: TOTAL ADMINISTRATIVE & GENERAL EXPENSES | AS57: =SUM(AS55:AS56) -> -1533.958 | AT57: =SUM(AT55:AT56) -> 438.76 | AU57: =SUM(AU55:AU56) -> 2180.597 | AV57: 7329.278 | AW57: =SUM(AW55:AW56) -> 0 | AX57: =SUM(AX55:AX56) -> -5.986 | AY57: 139.647 | AZ57: -625.138 | BA57: =SUM(BA55:BA56) -> -361.853 | BD57: =1+BD56 -> 31 | BE57: TOTAL ADMINISTRATIVE & GENERAL EXPENSES | BF57: =SUM(BF55:BF56) -> -12.095 | BG57: -2819.858 | BH57: =SUM(BH55:BH56) -> -319.396 | BI57: =SUM(BI55:BI56) -> 612.324 | BJ57: =SUM(BJ55:BJ56) -> -2166.654 | BK57: =SUM(BK55:BK56) -> 11458.268 | BL57: =SUM(BL55:BL56) -> 10.837 | BM57: 0 | BN57: 1.04762 | BO57: 79.77 | BR57: =1+BR56 -> 31 | BS57: TOTAL ADMINISTRATIVE & GENERAL EXPENSES | BT57: =SUM(BT55:BT56) -> 769.885 | BU57: 0 | BV57: =SUM(BV55:BV56) -> -276.22441 | BW57: =SUM(BW55:BW56) -> -43.5 | BX57: =SUM(BX55:BX56) -> -83.09499 | BY57: 0 | BZ57: =SUM(BZ55:BZ56) -> -1572.147 | CA57: =SUM(CA55:CA56) -> 542.353 | CC57: =SUM(CC55:CC56) -> 14285.32715 | CD57: =SUM(CD55:CD56) -> 206894.5873
C59: =1+C57 -> 29 | D59: TOTAL OPERATIONS & MAINTENANCE EXPENSES | E59: =E22+E27+E32+E37+E42+E47+E52+E57 -> 1446015.543 | F59: =F22+F27+F32+F37+F42+F47+F52+F57 -> 7176.204 | G59: -1486.757 | H59: -5691.65119 | I59: -1071.399 | J59: =J22+J27+J32+J37+J42+J47+J52+J57 -> 65738.41462 | K59: =K22+K27+K32+K37+K42+K47+K52+K57 -> -5442.470333 | L59: =L22+L27+L32+L37+L42+L47+L52+L57 -> -157.951 | M59: =M22+M27+M32+M37+M42+M47+M52+M57 -> 21272.217 | N59: 9423.919 | Q59: =1+Q57 -> 32 | R59: TOTAL OPERATIONS & MAINTENANCE EXPENSES | S59: =S22+S27+S32+S37+S42+S47+S52+S57 -> -2062.443 | T59: =T22+T27+T32+T37+T42+T47+T52+T57 -> 49056.598 | U59: =U22+U27+U32+U37+U42+U47+U52+U57 -> 25696.654 | V59: =V22+V27+V32+V37+V42+V47+V52+V57 -> -265.55164 | W59: =W22+W27+W32+W37+W42+W47+W52+W57 -> 3259.863 | X59: =X22+X27+X32+X37+X42+X47+X52+X57 -> -621.321 | Y59: =Y22+Y27+Y32+Y37+Y42+Y47+Y52+Y57 -> -5961.195 | Z59: 1337.65 | AA59: =AA22+AA27+AA32+AA37+AA42+AA47+AA52+AA57 -> -925.21766 | AB59: 1617.848 | AE59: =1+AE57 -> 32 | AF59: TOTAL OPERATIONS & MAINTENANCE EXPENSES | AG59: =AG22+AG27+AG32+AG37+AG42+AG47+AG52+AG57 -> -1577.384 | AH59: =AH22+AH27+AH32+AH37+AH42+AH47+AH52+AH57 -> 763.703 | AI59: -69518.871 | AJ59: =AJ22+AJ27+AJ32+AJ37+AJ42+AJ47+AJ52+AJ57 -> 0 | AK59: -6545.616 | AL59: =AL22+AL27+AL32+AL37+AL42+AL47+AL52+AL57 -> -143.173 | AM59: 621.058 | AN59: =AN22+AN27+AN32+AN37+AN42+AN47+AN52+AN57 -> 3563.254 | AQ59: =1+AQ57 -> 32 | AR59: TOTAL OPERATIONS & MAINTENANCE EXPENSES | AS59: =AS22+AS27+AS32+AS37+AS42+AS47+AS52+AS57 -> -1533.958 | AT59: =AT22+AT27+AT32+AT37+AT42+AT47+AT52+AT57 -> 438.76 | AU59: =AU22+AU27+AU32+AU37+AU42+AU47+AU52+AU57 -> 2180.597 | AV59: 7329.278 | AW59: =AW22+AW27+AW32+AW37+AW42+AW47+AW52+AW57 -> 23090.749 | AX59: =AX22+AX27+AX32+AX37+AX42+AX47+AX52+AX57 -> -15.206 | AY59: 139.647 | AZ59: -625.138 | BA59: =BA22+BA27+BA32+BA37+BA42+BA47+BA52+BA57 -> -361.853 | BD59: =1+BD57 -> 32 | BE59: TOTAL OPERATIONS & MAINTENANCE EXPENSES | BF59: -12.095 | BG59: =BG22+BG27+BG32+BG37+BG42+BG47+BG52+BG57 -> -2819.858 | BH59: =BH22+BH27+BH32+BH37+BH42+BH47+BH52+BH57 -> -319.396 | BI59: =BI22+BI27+BI32+BI37+BI42+BI47+BI52+BI57 -> 122.86 | BJ59: =BJ22+BJ27+BJ32+BJ37+BJ42+BJ47+BJ52+BJ57 -> -7212.388 | BK59: =BK22+BK27+BK32+BK37+BK42+BK47+BK52+BK57 -> 11458.268 | BL59: =BL22+BL27+BL32+BL37+BL42+BL47+BL52+BL57 -> 10.837 | BM59: 4287.776889 | BN59: 1.04762 | BO59: 79.77 | BR59: =1+BR57 -> 32 | BS59: TOTAL OPERATIONS & MAINTENANCE EXPENSES | BT59: =BT22+BT27+BT32+BT37+BT42+BT47+BT52+BT57 -> 769.885 | BU59: -5098.403 | BV59: =BV22+BV27+BV32+BV37+BV42+BV47+BV52+BV57 -> -283.37269 | BW59: =BW22+BW27+BW32+BW37+BW42+BW47+BW52+BW57 -> -162.882 | BX59: =BX22+BX27+BX32+BX37+BX42+BX47+BX52+BX57 -> -86.13135 | BY59: 98.202 | BZ59: =BZ22+BZ27+BZ32+BZ37+BZ42+BZ47+BZ52+BZ57 -> -1572.147 | CA59: =CA22+CA27+CA32+CA37+CA42+CA47+CA52+CA57 -> 542.353 | CC59: =CC22+CC27+CC32+CC37+CC42+CC47+CC52+CC57 -> 118503.5843 | CD59: =CD22+CD27+CD32+CD37+CD42+CD47+CD52+CD57 -> 1564519.128
C61: =1+C59 -> 30 | D61: NOTE: See SCHEDULE MJL-S11-7 for explanation of the pro forma adjustments. | Q61: =1+Q59 -> 33 | R61: =D61 -> NOTE: See SCHEDULE MJL-S11-7 for explanation of the pro forma adjustments. | AE61: =1+AE59 -> 33 | AF61: =D61 -> NOTE: See SCHEDULE MJL-S11-7 for explanation of the pro forma adjustments. | AQ61: =1+AQ59 -> 33 | AR61: =D61 -> NOTE: See SCHEDULE MJL-S11-7 for explanation of the pro forma adjustments. | BD61: =1+BD59 -> 33 | BE61: =D61 -> NOTE: See SCHEDULE MJL-S11-7 for explanation of the pro forma adjustments. | BR61: =1+BR59 -> 33 | BS61: =D61 -> NOTE: See SCHEDULE MJL-S11-7 for explanation of the pro forma adjustments.

Sheet SCHEDULE MJL-S11-7
A1: AMEREN MISSOURI
A2: ELECTRIC OPERATING AND MAINTENANCE EXPENSE
A3: ADJUSTMENTS
A4: ='SCHEDULE MJL-S13-2'!A4:K4 -> FOR THE TWELVE MONTHS ENDED DECEMBER 31, 2020 AND AS TRUED UP
A5: ($000)
B6: PRO FORMA | L6: TOTAL
B7: ITEM NO. | C7: DESCRIPTION | L7: AMOUNT
B8: (A) | C8: (B) | L8: (C)
B10: -1 | C10: Increased labor expense from annualizing the average 1.83% wage increase for management employees effective January 1, 2021, and the 2.50% wage increase for the Company's union employees effective January 1, 2021 per the labor contracts. | L10: ='SCHEDULE MJL-S11-1'!F59 -> 7176.204
B14: -2 | C14: Decrease the incentive compensation expense for the incentive compensation applicable to AMS and Ameren Missouri officers earnings per share targets. | L14: ='SCHEDULE MJL-S11-1'!G59 -> -1486.757
B17: -3 | C17: Eliminate the long term incentive compensation expense related to earnings per share targets. | L17: ='SCHEDULE MJL-S11-1'!H59 -> -5691.65119
B19: (4) | C19: Decrease administrative and general expenses for staffing annualization of salary. | L19: ='SCHEDULE MJL-S11-1'!I59 -> -1071.399
B22: -5 | C22: Increase in fuel expense to reflect the normalized sales and customer growth through September 30, 2021. | L22: ='SCHEDULE MJL-S11-1'!J59 -> 65738.41462
B24: -6 | C24: Decrease in purchased power expense to reflect normalized sales and customer growth through September 30, 2021 and normalized power prices. | L24: ='SCHEDULE MJL-S11-1'!K59 -> -5442.470333
B27: -7 | C27: Decrease in transmission expense related to Mark Twain Transmission project. | L27: ='SCHEDULE MJL-S11-1'!L59 -> -157.951
B29: -8 | C29: Increase the coal handling costs to reflect the elimination of the coal refinement process. | L29: ='SCHEDULE MJL-S11-1'!M59 -> 21272.217
B31: -9 | C31: Increase in production expense to normalize steam plant maintenance. | L31: ='SCHEDULE MJL-S11-1'!N59 -> 9423.919
B33: -10 | C33: Decrease in production expense to establish related Meramec retirement tracker base amount. | L33: ='SCHEDULE MJL-S11-1'!S59 -> -2062.443
B35: -11 | C35: Eliminate test year FAC recovery | L35: ='SCHEDULE MJL-S11-1'!T59 -> 49056.598
B37: -12 | C37: Increase nuclear production expense to include the annualized amount of the last 3 Callaway | L37: ='SCHEDULE MJL-S11-1'!U59 -> 25696.654
C38: Nuclear Plant refueling expenses.
B40: -13 | C40: Decrease nuclear production expense to eliminate Callaway unplanned outage costs. | L40: ='SCHEDULE MJL-S11-1'!V59 -> -265.55164
B42: -14 | C42: Increase in production expenses for amortization of RES cost regulatory liability. | L42: ='SCHEDULE MJL-S11-1'!W59 -> 3259.863
B44: -15 | C44: Decrease in production expenses for rebase of RES expenses | L44: ='SCHEDULE MJL-S11-1'!X59 -> -621.321
B46: -16 | C46: Decrease in production expenses to eliminate Solar Rebate amortizations in the test year. | L46: ='SCHEDULE MJL-S11-1'!Y59 -> -5961.195
B48: -17 | C48: Increase in production expenses for Solar Rebate amortizations. | L48: ='SCHEDULE MJL-S11-1'!Z59 -> 1337.65
B50: -18 | C50: Decrease in production and distribution expenses for decrease in depreciation charged to O&M. | L50: ='SCHEDULE MJL-S11-1'!AA59 -> -925.21766
B52: -19 | C52: Increase in distribution expense to normalize storm costs. | L52: ='SCHEDULE MJL-S11-1'!AB59 -> 1617.848
B54: -20 | C54: Decrease in distribution expense to normalize vegetation and infrastructure inspections. | L54: ='SCHEDULE MJL-S11-1'!AG59 -> -1577.384
B56: -21 | C56: Increase in customer accounting expenses to reflect interest expense at 4.25% on the average customer deposit | L56: ='SCHEDULE MJL-S11-1'!AH59 -> 763.703
C57: balance.
B59: -22 | C59: Decrease in customer service to eliminate test year MEEIA program costs. | L59: ='SCHEDULE MJL-S11-1'!AI59 -> -69518.871
B61: -23 | C61: Intentionally left blank. | L61: ='SCHEDULE MJL-S11-1'!AJ59 -> 0
B63: -24 | C63: Decrease in administrative and general expenses to normalize bad debt expense. | L63: ='SCHEDULE MJL-S11-1'!AK59 -> -6545.616
B65: -25 | C65: Decrease in administrative and general expense for membership dues to be recorded below the line. | L65: ='SCHEDULE MJL-S11-1'!AL59 -> -143.173
B67: -26 | C67: Increase in administrative and general expenses to annualize EEI dues. | L67: ='SCHEDULE MJL-S11-1'!AM59 -> 621.058
B69: -27 | C69: Annualize insurance expense based upon current insurance premiums. | L69: ='SCHEDULE MJL-S11-1'!AN59 -> 3563.254
B71: -28 | C71: Decrease administrative and general expenses to reflect annualized major medical and other employee benefit expenses through September 30, 2021. | L71: ='SCHEDULE MJL-S11-1'!AS59 -> -1533.958
B74: -29 | C74: Increase non-qualified pension expense to reflect current level of expense. | L74: ='SCHEDULE MJL-S11-1'!AT59 -> 438.76
B76: -30 | C76: Rebase Pension and OPEB Tracker to true up level. | L76: ='SCHEDULE MJL-S11-1'!AU59 -> 2180.597
B78: -31 | C78: Increase the amortization of the net regulatory liabilities for Pension and OPEB Tracker. | L78: ='SCHEDULE MJL-S11-1'!AV59 -> 7329.278
B80: (32) | C80: Increase in operating and maintenance expense for base level expenses related to RESRAM. | L80: ='SCHEDULE MJL-S11-1'!AW59 -> 23090.749
B82: -33 | C82: Reduce expenses for alcohol purchases. | L82: ='SCHEDULE MJL-S11-1'!AX59 -> -15.206
B84: -34 | C84: Increase administrative and general expenses to reflect the 3 case average of expenses to prepare and litigate this rate filings and annualize the amount. | L84: ='SCHEDULE MJL-S11-1'!AY59 -> 139.647
B87: -35 | C87: Decrease administrative and general expenses to annualize MPSC Assessment. | L87: ='SCHEDULE MJL-S11-1'!AZ59 -> -625.138
B89: -36 | C89: Decrease administrative and general expenses for certain Board of Director meeting expenses. | L89: ='SCHEDULE MJL-S11-1'!BA59 -> -361.853
B91: -37 | C91: Decrease administrative and general expense to normalize depreciation study expense. | L91: ='SCHEDULE MJL-S11-1'!BF59 -> -12.095
B93: -38 | C93: Decrease administrative and general expense to remove Bank of America lease costs. | L93: ='SCHEDULE MJL-S11-1'!BG59 -> -2819.858
B95: -39 | C95: Decrease administrative and general expenses for software rental expense | L95: ='SCHEDULE MJL-S11-1'!BH59 -> -319.396
B97: -40 | C97: Increase administrative and general expense to utilize 2021 allocation factors. | L97: ='SCHEDULE MJL-S11-1'!BI59 -> 122.86
B99: (41) | C99: Decrease administrative and general expense normalize expense directly impacted by the COVID pandemic. | L99: ='SCHEDULE MJL-S11-1'!BJ59 -> -7212.388
B101: (42) | C101: Increase administrative and general expense to normalize the Company-Owned Life Insurance (COLI) expense. | L101: ='SCHEDULE MJL-S11-1'!BK59 -> 11458.268
B103: (43) | C103: Increase administrative and general expenses for electric costs allocated to gas. | L103: ='SCHEDULE MJL-S11-1'!BL59 -> 10.837
B105: (44) | C105: Increase in operating and maintenance expense for customer convenience fees. | L105: ='SCHEDULE MJL-S11-1'!BM59 -> 4287.776889
B107: (45) | C107: Increase administrative and general expense for the EV incentive program. | L107: ='SCHEDULE MJL-S11-1'!BN59 -> 1.04762
B109: (46) | C109: Increase administrative and general expense for non-labor software maintenance costs. | L109: ='SCHEDULE MJL-S11-1'!BO59 -> 79.77
B111: (47) | C111: Increase in building rent expenses charged to AMS and allocated to Ameren Missouri. | L111: ='SCHEDULE MJL-S11-1'!BT59 -> 769.885
B113: (48) | C113: Decrease automated meter read costs, reduced as a result of automated meter infrastructure investment. | L113: ='SCHEDULE MJL-S11-1'!BU59 -> -5098.403
B115: (49) | C115: To remove miscellaneous expenses from the test year. | L115: ='SCHEDULE MJL-S11-1'!BV59 -> -283.37269
B117: (50) | C117: To remove paperless bill credit expenses. | L117: ='SCHEDULE MJL-S11-1'!BW59 -> -162.882
B119: (51) | C119: To remove test year O&M for facilities that are no longer in service at true-up date. | L119: ='SCHEDULE MJL-S11-1'!BX59 -> -86.13135
B121: (52) | C121: To adjust outside call center costs to a 3 year average. | L121: ='SCHEDULE MJL-S11-1'!BY59 -> 98.202
B123: (53) | C123: To adjust Rush Island New Source Review Legal Fees to annual levels ending at the true up date. | L123: ='SCHEDULE MJL-S11-1'!BZ59 -> -1572.147
B125: (54) | C125: To true-up non-labor cybersecurity costs. | L125: ='SCHEDULE MJL-S11-1'!CA59 -> 542.353
B130: Total Adjustments to Electric Operating and Maintenance Expenses
L131: =SUM(L10:L130) -> 118503.5843

Sheet SCHEDULE MJL-S12-1
A1: AMEREN MISSOURI
B2: DEPRECIATION & AMORTIZATION EXPENSE
B3: ='SCHEDULE MJL-S12-2'!A3 -> FOR THE TWELVE MONTHS ENDED DECEMBER 31, 2020 AND AS TRUED UP
B4: ($000)
D6: TOTALS | F6: ADJUSTED
D7: PER | F7: ELECTRIC
B8: LINE | C8: DESCRIPTION | D8: BOOKS | E8: ADJUSTMENTS(1) | F8: TOTALS
C9: (A) | D9: (B) | E9: (C) | F9: (D)
C11: DEPRECIATION EXPENSE:
B12: =1 -> 1 | C12: STEAM | D12: 169076.6669 | E12: ='SCHEDULE MJL-S12-2'!E15+'SCHEDULE MJL-S12-2'!E28+'SCHEDULE MJL-S12-2'!E45 -> 54614.54663 | F12: =SUM(D12:E12) -> 223691.2135
B13: =1+B12 -> 2 | C13: NUCLEAR | D13: 78518.14993 | E13: ='SCHEDULE MJL-S12-2'!E16+'SCHEDULE MJL-S12-2'!E29 -> 9070.19507 | F13: 87588.345
B14: 3 | C14: CALLAWAY DECOMMISSIONING | D14: 6758.60496 | E14: 0 | F14: 6758.60496
B15: 4 | C15: HYDRAULIC | D15: 12404.71937 | E15: ='SCHEDULE MJL-S12-2'!E17+'SCHEDULE MJL-S12-2'!E30 -> 2675.69863 | F15: 15080.418
B16: 5 | C16: OTHER | D16: 29816.02056 | E16: 35265.07444 | F16: 65081.095
B17: 6 | C17: TRANSMISSION PLANT | D17: 37099.29187 | E17: ='SCHEDULE MJL-S12-2'!E19+'SCHEDULE MJL-S12-2'!E32 -> 760.62613 | F17: 37859.918
B18: 7 | C18: DISTRIBUTION PLANT | D18: 193395.5226 | E18: ='SCHEDULE MJL-S12-2'!E20+'SCHEDULE MJL-S12-2'!E33 -> 22616.31942 | F18: 216011.842
B19: 8 | C19: GENERAL PLANT | D19: 31788.50876 | E19: ='SCHEDULE MJL-S12-2'!E21+'SCHEDULE MJL-S12-2'!E34+'SCHEDULE MJL-S12-2'!E46 -> 4930.68524 | F19: 36719.194
B20: 9 | C20: PISA | D20: -14575.63975 | E20: ='SCHEDULE MJL-S12-2'!E39 -> 14575.63975 | F20: 0
B21: 10 | C21: ICC DEPRECIATION | D21: 0 | E21: ='SCHEDULE MJL-S12-2'!E22 -> -1517.59 | F21: =SUM(D21:E21) -> -1517.59
B23: =1+B21 -> 11 | C23: TOTAL DEPRECIATION EXPENSE | D23: =SUM(D12:D22) -> 544281.8452 | E23: =SUM(E12:E22) -> 142991.1953 | F23: =SUM(F12:F22) -> 687273.0405
C25: PLANT AMORTIZATION:
B26: =1+B23 -> 12 | C26: INTANGIBLE PLANT | D26: 48715.67648 | E26: ='SCHEDULE MJL-S12-2'!E23+'SCHEDULE MJL-S12-2'!E35 -> 21321.75396 | F26: =SUM(D26:E26) -> 70037.43044
B27: =1+B26 -> 13 | C27: HYDRAULIC PLANT | D27: 755.71476 | E27: 0 | F27: =SUM(D27:E27) -> 755.71476
B28: =1+B27 -> 14 | C28: TRANSMISSION PLANT | D28: 420.30996 | E28: 0 | F28: =SUM(D28:E28) -> 420.30996
B29: =1+B28 -> 15 | C29: GENERAL PLANT | D29: 0 | E29: 0 | F29: =SUM(D29:E29) -> 0
B30: 17 | C30: PISA | D30: -11246.609 | E30: ='SCHEDULE MJL-S12-2'!E40 -> 11246.609 | F30: =SUM(D30:E30) -> 0
B32: =1+B30 -> 18 | C32: TOTAL PLANT AMORTIZATION | D32: =SUM(D26:D31) -> 38645.0922 | E32: =SUM(E26:E31) -> 32568.36296 | F32: =SUM(F26:F31) -> 71213.45516
C34: MISC. AMORTIZATION:
B35: =1+B32 -> 19 | C35: CALLAWAY POST OPERATIONAL | D35: 3687.468 | E35: 0 | F35: =SUM(D35:E35) -> 3687.468
B36: =B35+1 -> 20 | C36: CALLAWAY LIFE EXTEN AMORT | D36: 99.66459 | E36: ='SCHEDULE MJL-S12-2'!E49 -> 4.21241 | F36: 103.877
B37: 21 | C37: AMORT OF FUKUSHIMA STUDY COSTS | D37: 92.656 | E37: 0 | F37: 92.656
B38: 22 | C38: SIOUX SCRUBBER CONSTRUCTION ACCOUNTING | D38: 1130.536 | E38: ='SCHEDULE MJL-S12-2'!E51 -> 2328.681 | F38: 3459.217
B39: 23 | C39: AMORT. OF STORM TRACKERS | D39: -887.40532 | E39: 887 | F39: -0.40532
B40: 24 | C40: AMORT. OF VEGETATION MANAGEMENT &
B41: 25 | C41: INFRASTRUCTURE INSPECTION REG. ASSETS | D41: -17.694 | E41: 18 | F41: =SUM(D41:E41) -> 0.306
B42: 26 | C42: AMORT. OF ENTERGY DISPUTE | D42: 62.0401 | E42: -62 | F42: 0.0401
B43: 27 | C43: AMORT. OF ENERGY EFFICIENCY REG ASSETS | D43: -1555.82897 | E43: 1556 | F43: 0.17103
B44: 28 | C44: AMORT OF LOW INCOME SURCHARGE | D44: 956.87512 | E44: ='SCHEDULE MJL-S12-2'!E63 -> 43.12488 | F44: 1000
B45: 29 | C45: AMORT OF EXTENDED REGULATORY ITEMS | D45: -2500.026 | E45: -160 | F45: -2660.026
B46: 30 | C46: AMORT OF FIN 48 TRACKER | D46: 570.2958 | E46: -570 | F46: 0.2958
B47: 31 | C47: PISA AMORTIZATION | D47: -14575.63975 | E47: ='SCHEDULE MJL-S12-2'!E67 -> 27099.0674 | F47: =SUM(D47:E47) -> 12523.42765
B48: 32 | C48: EXCESS DEFERRED TRACKER AMORTIZATION | D48: 4037.035 | E48: ='SCHEDULE MJL-S12-2'!E69 -> -7399.231333 | F48: -3362.196333
B49: 33 | C49: MEEIA ORDERED ADJUSTMENTS | D49: 4.05186 | E49: -4 | F49: 0.05186
B50: 34 | C50: RESRAM ADJUSTMENTS | D50: 9537.00531 | E50: ='SCHEDULE MJL-S12-2'!E71 -> -9537.00531 | F50: 0
B51: 35 | C51: CHARGE AHEAD CORRIDOR | D51: 0 | E51: ='SCHEDULE MJL-S12-2'!E73 -> 615.6714286 | F51: 615.6714286
B52: 36 | C52: TAX DEFERRAL RATE CHANGE JAN-JULY 2019 | D52: -14934.465 | E52: ='SCHEDULE MJL-S12-2'!E75 -> 4148.4595 | F52: -10786.0055
B53: 37 | C53: PAYS AMORT | D53: 0 | E53: ='SCHEDULE MJL-S12-2'!E79 -> 16.18738686 | F53: 16.18738686
B54: 38 | C54: EQUITY ISSUANCE COST AMORT | D54: 0 | E54: ='SCHEDULE MJL-S12-2'!E81 -> 255.446938 | F54: 255.446938
B55: 39 | C55: COVID AAO | D55: 0 | E55: ='SCHEDULE MJL-S12-2'!E77 -> 2912.054 | F55: 2912.054
B56: 40 | C56: TOTAL MISC AMORTIZATION | D56: =SUM(D35:D55) -> -14293.43126 | E56: =SUM(E35:E55) -> 22151.6683 | F56: =SUM(F35:F55) -> 7858.23704
B58: =1+B56 -> 41 | C58: TOTAL DEPR & AMORTIZATION EXPENSE | D58: =+D23+D32+D56 -> 568633.5061 | E58: =+E23+E32+E56 -> 197711.2266 | F58: =+F23+F32+F56 -> 766344.7327
B60: =1+B58 -> 42 | C60: (1) See SCHEDULE MJL-S12-2 for explanation of the pro forma adjustments.

Sheet SCHEDULE MJL-S12-2
A1: AMEREN MISSOURI
A2: ELECTRIC DEPRECIATION & AMORTIZATION EXPENSE ADJUSTMENTS
A3: ='SCHEDULE MJL-S13-1'!B3 -> FOR THE TWELVE MONTHS ENDED DECEMBER 31, 2020 AND AS TRUED UP
A4: ($000)
A8: LINE | B8: ITEM NO. | C8: DESCRIPTION | E8: ADJUSTMENTS
B9: (A) | C9: (B) | E9: (C)
A11: 1 | B11: -1 | C11: To reflect the book depreciation annualized for the plant in service depreciable balances at December 31, 2020 and additions to plant in service from January 2021 through September 2021 to reflect the true-up.
A12: =1+A11 -> 2
A13: =1+A12 -> 3
A15: =1+A13 -> 4 | C15: Change in Depr. Exp. - Steam | E15: -37295.1737
A16: =1+A15 -> 5 | C16: Change in Depr. Exp. - Nuclear | E16: 841.23107
A17: 6 | C17: Change in Depr. Exp. - Hydro | E17: 709.53963
A18: 7 | C18: Change in Depr. Exp. - Other Prod. | E18: 41383.38844
A19: 8 | C19: Change in Depr. Exp. - Transmission | E19: 3602.06013
A20: 9 | C20: Change in Depr. Exp. - Distribution | E20: 18360.99142
A21: 10 | C21: Change in Depr. Exp. - General Plant | E21: 19526.62924
A22: 11 | C22: Change in Depr. Exp. - Incentive Comp Capitalized | E22: -1517.59
A23: 12 | C23: Change in Amor. Exp. - Intangible Plant | E23: 21321.75396
A24: 13 | C24: Total Increase in Depreciation Expense | E24: =SUM(E15:E23) -> 66932.83019
A26: =1+A24 -> 14 | B26: -2 | C26: To reflect change in depreciation rates per testimony of Gannett Fleming
A28: =1+A26 -> 15 | C28: Increase in Depr. Exp. - Steam | E28: 92048.14433
A29: =1+A28 -> 16 | C29: Increase in Depr. Exp. - Nuclear | E29: 8228.964
A30: 17 | C30: Increase in Depr. Exp. - Hydro | E30: 1966.159
A31: 18 | C31: Increase in Depr. Exp. - Other Prod. | E31: -6118.314
A32: 19 | C32: Increase in Depr. Exp. - Transmission | E32: -2841.434
A33: 20 | C33: Increase in Depr. Exp. - Distribution | E33: 4255.328
A34: 21 | C34: Increase in Depr. Exp. - General Plant | E34: -3226.148
A35: =1+A34 -> 22 | C35: Increase in Amort. Exp. - Intangible Plant | E35: 0
A36: 23 | C36: Total Increase in Depreciation Expense | E36: =SUM(E28:E35) -> 94312.69933
A38: =1+A36 -> 24 | B38: -3 | C38: To eliminate PISA deferral
A39: =1+A38 -> 25 | C39: Depreciation | E39: 14575.63975
A40: 26 | C40: Amortization | E40: 11246.609
E41: =SUM(E39:E40) -> 25822.24875
A43: =1+A40 -> 27 | B43: -4 | C43: To reduce depreciation expense charged to O&M
A45: =1+A43 -> 28 | C45: Decrease in Depr. Exp. - Steam | E45: -138.424
A46: =1+A45 -> 29 | C46: Decrease in Depr. Exp. - General Plant | E46: -11369.796
A47: =1+A46 -> 30 | C47: Total Decrease in Depreciation Expense | E47: =SUM(E45:E46) -> -11508.22
A49: =1+A47 -> 31 | B49: -5 | C49: To reflect annualization of amortization of the Callaway Life Extension | E49: 4.21241
A51: =1+A49 -> 32 | B51: -6 | C51: To align the Sioux Scrubber Construction Accounting amortization with a 2028 | E51: 2328.681
A52: =1+A51 -> 33 | C52: retirement date.
A54: =1+A52 -> 34 | B54: -7 | C54: To eliminate the amortization relating to expiring amortizations combined and netted at Adjustment 11. | E54: 3126.63532
A55: =1+A54 -> 35
A57: =1+A55 -> 36 | B57: -8 | C57: To eliminate the amortization of balances combined and netted in File No. ER-2019-0335. These combined and netted balances are further considered in adjustment 11. | E57: -614.6419
A58: =A57+1 -> 37
A60: =1+A58 -> 38 | B60: -9 | C60: To eliminate the amortizations and deferrals made under the MEEIA Rider, including MEEIA ordered adjustments | E60: 1812.57311
A61: =1+A60 -> 39
A63: =1+A61 -> 40 | B63: -10 | C63: To reflect the elimination of Low Income Surcharge from Amortizations | E63: 43.12488
A65: =1+A63 -> 41 | B65: -11 | C65: To amortize Extended Regulatory Items | E65: -2659.817333
A67: =1+A65 -> 42 | B67: -12 | C67: To reflect amortization of PISA | E67: 27099.0674
A69: =1+A67 -> 43 | B69: -13 | C69: To reflect amortization of Excess Deferred Tracker | E69: -7399.231333
A71: =1+A69 -> 44 | B71: -14 | C71: To eliminate RESRAM activity | E71: -9537.00531
A73: =1+A71 -> 45 | B73: -15 | C73: To reflect Charge Ahead Corridor amortization | E73: 615.6714286
A75: =1+A73 -> 46 | B75: -16 | C75: To reflect amortization Tax Deferral Rate Change (1/1/19 - 7/31/19) | E75: 4148.4595
A77: =1+A75 -> 47 | B77: -17 | C77: To reflect COVID AAO amortization | E77: 2912.054
A79: =1+A77 -> 48 | B79: -18 | C79: To amortize the PAYS regulatory asset | E79: 16.18738686
A81: =1+A79 -> 49 | B81: -19 | C81: To amortize equity issuance costs | E81: 255.446938
A83: =1+A81 -> 50 | B83: TOTAL PRO FORMA ADJUSTMENTS: DEPRECIATION & AMORTIZATION | E83: =SUM(E24,E36,E41,E47:E82) -> 197710.9758

Sheet SCHEDULE MJL-S13-1
B1: AMEREN MISSOURI
B2: TAXES OTHER THAN INCOME TAXES
B3: FOR THE TWELVE MONTHS ENDED DECEMBER 31, 2020 AND AS TRUED UP
B4: ($000)
E6: TOTAL | G6: ADJUSTED
E7: PER | G7: ELECTRIC
B8: LINE | C8: DESCRIPTION | E8: BOOKS | F8: ADJUSTMENTS(1) | G8: TOTALS
C9: (A) | E9: (B) | F9: (C) | G9: (D)
C11: PAYROLL TAXES
B12: 1 | C12: F.I.C.A. | D12: 165021 | E12: 21335.47728 | F12: ='SCHEDULE MJL-S13-2'!K11 -> 271.952 | G12: =E12+F12 -> 21607.42928
B13: =1+B12 -> 2 | C13: FEDERAL UNEMPLOYMENT | E13: 178.53095 | F13: 0 | G13: =E13+F13 -> 178.53095
B14: =1+B13 -> 3 | C14: MISSOURI UNEMPLOYMENT | E14: 0 | F14: 0 | G14: =E14+F14 -> 0
B15: =1+B14 -> 4 | C15: ILLINOIS UNEMPLOYMENT | E15: 3.79208 | F15: 0 | G15: 3.79208
B16: =1+B15 -> 5 | C16: IOWA UNEMPLOYMENT | E16: 0.9997 | F16: 0
B17: =1+B16 -> 6 | C17: OTHER STATES UNEMPLOYMENT | E17: 0.045 | F17: 0 | G17: 0.045
B18: =1+B17 -> 7 | C18: ST. LOUIS EMPLOYMENT TAX | E18: 490.75254 | F18: 0 | G18: 490.75254
B19: =1+B18 -> 8 | C19: TOTAL PAYROLL TAXES | E19: =SUM(E12:E18) -> 22009.59755 | F19: =SUM(F12:F18) -> 271.952 | G19: =SUM(G12:G18) -> 22280.54985
C21: R.E., P.P. & CORP FRANCHISE
B22: =1+B19 -> 9 | C22: MISSOURI R.E., & P.P. | D22: 685910 | E22: 154755.0653 | F22: ='SCHEDULE MJL-S13-2'!K13+'SCHEDULE MJL-S13-2'!K18 -> -340.707 | G22: =SUM(E22:F22) -> 154414.3583
B23: =1+B22 -> 10 | C23: ILLINOIS R.E., & P.P. | E23: 3786.71818 | F23: 0 | G23: 3786.71818
B24: 11 | C24: IOWA R.E., & P.P. | E24: 1229.76683 | F24: 0 | G24: 1229.76683
B25: 12 | C25: OTHER STATES R.E. & P.P. | E25: 24.971 | F25: 0 | G25: 24.971
B26: 13 | C26: R.E. TAXES CAPITALIZED | E26: -2142.85084 | F26: 0 | G26: -2142.85084
B27: 14 | C27: TRANSFER TO GAS | D27: 762523 | E27: -175.438 | F27: 0 | G27: -175.438
B28: 15 | C28: TRANSFER TO NON UTILITY | E28: -84.662 | F28: 0 | G28: -84.662
B29: =1+B28 -> 16 | C29: TOTAL R.E., P.P. & CORP FRANCHISE | D29: =SUM(D22:D27) -> 1448433 | E29: =SUM(E22:E28) -> 157393.5705 | F29: =SUM(F22:F28) -> -340.707 | G29: 157052.8635
B31: =1+B29 -> 17 | C31: MUNICIPAL GROSS RECEIPTS | E31: 133304.667 | F31: ='SCHEDULE MJL-S13-2'!K16 -> -133304.667 | G31: =SUM(E31:F31) -> 0
C33: MISCELLANEOUS
B34: =1+B31 -> 18 | C34: MISSOURI CORP FRANCHISE | E34: 0 | F34: 0 | G34: =E34+F34 -> 0
B35: =1+B34 -> 19 | C35: ILLINOIS CORP FRANCHISE | E35: 101.55879 | F35: 0 | G35: =E35+F35 -> 101.55879
B36: 20 | C36: IOWA CORP FRANCHISE | E36: 0 | F36: 0
B37: 21 | C37: FED. EXCISE TAX-HEAVY VEH. USE TAX | E37: 21.8885 | F37: 0 | G37: =E37+F37 -> 21.8885
B38: 22 | C38: ST. LOUIS EARNINGS | E38: 0 | F38: 0
B39: 23 | C39: MO. EXCISE - NEIL INS. PREM. | D39: 107 | E39: 0 | F39: 0 | G39: =E39+F39 -> 0
B40: 24 | C40: MISCELLANEOUS | E40: -205.603 | F40: 0 | G40: =E40+F40 -> -205.603
B41: 25 | C41: TOTAL MISCELLANEOUS | E41: =SUM(E34:E40) -> -82.15571 | F41: =SUM(F34:F40) -> 0 | G41: =SUM(G34:G40) -> -82.15571
B44: =1+B41 -> 26 | C44: TOTAL TAXES OTHER THAN INCOME TAXES | E44: =E19+E29+E31+E41 -> 312625.6793 | F44: =F19+F29+F31+F41 -> -133373.422 | G44: =G19+G29+G31+G41 -> 179251.2576
B46: =1+B44 -> 27 | C46: (1) See SCHEDULE MJL-S13-2 for explanation of the pro forma adjustments.

Sheet SCHEDULE MJL-S13-2
A1: AMEREN MISSOURI
A2: TAXES OTHER THAN INCOME
A3: ADJUSTMENTS
A4: ='SCHEDULE MJL-S13-1'!B3 -> FOR THE TWELVE MONTHS ENDED DECEMBER 31, 2020 AND AS TRUED UP
A5: ($000)
A8: LINE | B8: ITEM NO. | C8: DESCRIPTION | K8: AMOUNT
B9: (A) | C9: (B) | K9: (C)
A11: 1 | B11: -1 | C11: Increase the F.I.C.A. taxes to reflect the pro forma wage adjustments. | K11: 271.952
A13: =1+A11 -> 2 | B13: -2 | C13: Eliminate the property taxes on future use plant, as this investment is excluded from rate base. | K13: -353.651
A14: =1+A13 -> 3
A16: =1+A14 -> 4 | B16: -3 | C16: Eliminate the gross receipts tax as they are a pass through tax. | K16: -133304.667
A18: 5 | B18: -4 | C18: Wind Prop Tax | K18: 12.944
A20: 6 | C20: Total Pro Forma Adjustments to Taxes Other Than Income | K20: =SUM(K10:K18) -> -133373.422

Sheet SCHEDULE MJL-S14
A1: AMEREN MISSOURI
A2: TOTAL ELECTRIC INCOME TAXES AT THE PROPOSED RETURN FOR THE TWELVE MONTHS ENDED DECEMBER 31, 2020 AND AS TRUED UP
A3: ($000)
E6: TOTAL
A7: LINE | C7: DESCRIPTION | E7: ELECTRIC
C8: (A) | D8: (B) | E8: (C)
A10: 1 | C10: TOTAL ELECTRIC NET INCOME FROM OPERATIONS | E10: 716032.8327
C12: ADD
A13: =1+A10 -> 2 | C13: CURRENT INCOME TAXES | E13: 67999.62
A14: =1+A13 -> 3 | C14: DEFERRED INCOME TAXES
A15: =1+A14 -> 4 | C15: DEFERRED INCOME TAX EXPENSE | E15: -78324.777
A16: =1+A15 -> 5 | C16: I.T.C. AMORTIZATION | E16: -4729.856
A18: =1+A16 -> 6 | C18: TOTAL ELECTRIC NET INCOME BEFORE INCOME TAX | E18: =SUM(E10:E16) -> 700977.8197
C20: ADDITIONS TO NET INCOME BEFORE INCOME TAX
A21: =1+A18 -> 7 | C21: BOOK DEPRECIATION | E21: 687273.0405
A22: =1+A21 -> 8 | C22: BOOK DEPRECIATION CHARGED TO O&M | E22: 4381.632
A23: 9 | C23: INTANGIBLE AMORTIZATIONS | E23: 70037.43044
A24: 10 | C24: HYDRAULIC AMORTIZATIONS | E24: 755.71476
A25: 11 | C25: TRANSMISSION AMORTIZATIONS | E25: 420.30996
A26: 12 | C26: CALLAWAY POST OPERATIONAL COSTS | E26: 3687.468
A27: 13 | C27: NONDEDUCTIBLE PARKING LOT EXPENSE | E27: 672.483
A29: =1+A27 -> 14 | C29: TOTAL ADDITIONS | E29: =SUM(E21:E28) -> 767228.0787
C31: SUBTRACTIONS TO NET INCOME BEFORE INCOME TAX
A32: =1+A29 -> 15 | C32: INTEREST ON DEBT (1) | E32: 188488.711
A33: =1+A32 -> 16 | C33: TAX STRAIGHT LINE | E33: 748450.499
A34: =1+A33 -> 17 | C34: PRODUCTION DEDUCTION | E34: 0
A35: =1+A34 -> 18 | C35: NUCLEAR DECOMMISSIONING | E35: 6758.605
A36: =1+A35 -> 19 | C36: RSU PERMANENT DIFFERENCE | E36: 855.296
A37: =1+A36 -> 20 | C37: PREFERRED DIVIDEND DEDUCTION | E37: 415.274
A39: =1+A37 -> 21 | C39: TOTAL SUBTRACTIONS | E39: =SUM(E32:E37) -> 944968.385
A41: =1+A39 -> 22 | C41: TOTAL ELECTRIC NET TAXABLE INCOME | E41: =E18+E29-E39 -> 523237.5134
C43: FEDERAL INCOME TAX
A44: =1+A41 -> 23 | C44: NET TAXABLE INCOME | E44: =E41 -> 523237.5134
A45: =1+A44 -> 24 | C45: DEDUCT MISSOURI INCOME TAX | E45: 19969.441
A46: =1+A45 -> 25 | C46: DEDUCT CITY EARNINGS TAX | E46: -27.194
A47: =1+A46 -> 26 | C47: FEDERAL TAXABLE INCOME | E47: =E44-E45-E46 -> 503295.2664
A49: =1+A47 -> 27 | C49: =" FEDERAL INCOME TAX" -> FEDERAL INCOME TAX | D49: 0.21 | E49: 105692.006
C50: LESS TAX CREDITS
A51: =1+A49 -> 28 | C51: RESEARCH CREDIT | E51: 1053.583
A52: =1+A51 -> 29 | C52: PRODUCTION TAX CREDIT | E52: 56581.05
A53: =1+A52 -> 30 | C53: TOTAL ELECTRIC FEDERAL INCOME TAX | E53: =+E49-E51-E52-1 -> 48056.373
C55: STATE INCOME TAXES
A56: =1+A53 -> 31 | C56: NET TAXABLE INCOME | E56: =E41 -> 523237.5134
A57: =1+A56 -> 32 | C57: DEDUCT 50% OF FEDERAL INCOME TAX | E57: =ROUND(E53*0.5,0) -> 24028
A58: =1+A57 -> 33 | C58: DEDUCT CITY EARNINGS TAX | E58: =+E69 -> -27.033
A59: =1+A58 -> 34 | C59: MISSOURI TAXABLE INCOME | E59: =E56-E57-E58 -> 499236.5464
A61: =1+A59 -> 35 | C61: TOTAL ELECTRIC MISSOURI INCOME TAX | D61: 0.04 | E61: =ROUND(E59*D61,0)+1 -> 19970
C63: CITY EARNINGS TAX
A64: =1+A61 -> 36 | C64: NET TAXABLE INCOME | E64: =+E41 -> 523237.5134
A65: =1+A64 -> 37 | C65: LESS TAX ADJUSTMENTS TO INCOME | E65: -513162.086
A66: =1+A65 -> 38 | C66: CITY TAXABLE INCOME | E66: =+E64+E65 -> 10075.42738
A67: =1+A66 -> 39 | C67: CITY EARNINGS TAX | D67: 0.001175 | E67: =ROUND(E66*D67,0) -> 12
A68: =1+A67 -> 40 | C68: LESS: TAX CREDIT | E68: 39.033
A69: =1+A68 -> 41 | C69: TOTAL ELECTRIC NET CITY EARNINGS TAX | E69: =+E67-E68 -> -27.033
A71: =1+A69 -> 42 | C71: TOTAL ELECTRIC CURRENT INCOME TAXES | E71: =E53+E61+E69 -> 67999.34
C73: DEFERRED INCOME TAXES:
A74: =1+A71 -> 43 | C74: DEFERRED INCOME TAX EXPENSE | E74: =+E15 -> -78324.777
A75: =1+A74 -> 44 | C75: I.T.C. AMORTIZATION | E75: =+E16 -> -4729.856
A76: =1+A75 -> 45 | C76: TOTAL ELECTRIC DEFERRED INCOME TAX | E76: =SUM(E74:E75) -> -83054.633
A78: =1+A76 -> 46 | C78: TOTAL ELECTRIC CURRENT & DEFERRED INCOME TAX | E78: =+E71+E76 -> -15055.293
A81: =1+A78 -> 47 | C81: (1) RATE BASE X EMBEDDED
A82: =1+A81 -> 48 | C82: COST OF DEBT. | D82: 0.01849

Sheet SCHEDULE MJL-S15
B1: AMEREN MISSOURI
B2: TOTAL ELECTRIC NET ORIGINAL COST RATE BASE AND REVENUE REQUIREMENT
B3: ='SCHEDULE MJL-S13-1'!B3:G3 -> FOR THE TWELVE MONTHS ENDED DECEMBER 31, 2020 AND AS TRUED UP
B4: ($000)
F6: TOTAL
F7: ELECTRIC
B8: LINE | C8: DESCRIPTION | D8: REFERENCE | F8: AMOUNT
C9: (A) | D9: (B) | F9: (C)
C11: A. TOTAL ELECTRIC NET ORIGINAL COST RATE BASE
B13: 1 | C13: ORIGINAL COST OF PLANT IN SERVICE | D13: SCHEDULE MJL-S1 | F13: =+'SCHEDULE MJL-S1'!G35 -> 21013265.43
B14: =1+B13 -> 2 | C14: LESS: RESERVES FOR DEPRECIATION & AMORTIZATION | D14: SCHEDULE MJL-S2 | F14: =+'SCHEDULE MJL-S2'!G35 -> 8570521.381
B15: =1+B14 -> 3 | C15: NET ORIGINAL COST OF PLANT | F15: =F13-F14 -> 12442744.05
B16: 4 | C16: AVERAGE FUEL AND MATERIALS AND SUPPLIES | D16: SCHEDULE MJL-S3 | F16: =+'SCHEDULE MJL-S3'!F23 -> 518621.981
B17: 5 | C17: AVERAGE PREPAYMENTS | D17: SCHEDULE MJL-S4 | F17: =+'SCHEDULE MJL-S4'!G25 -> 18149.327
B18: 6 | C18: CASH WORKING CAPITAL (LEAD/LAG) | D18: SCHEDULE MJL-S5 | F18: ='SCHEDULE MJL-S5'!J47 -> -17189
B19: 7 | C19: FEDERAL INCOME TAX CASH REQUIREMENT | D19: SCHEDULE MJL-S6 | F19: ='SCHEDULE MJL-S6'!J14 -> -129
B20: 8 | C20: STATE INCOME TAX CASH REQUIREMENT | D20: SCHEDULE MJL-S6 | F20: ='SCHEDULE MJL-S6'!J16 -> -53
B21: 9 | C21: CITY EARNINGS TAX CASH REQUIREMENT | D21: SCHEDULE MJL-S6 | F21: ='SCHEDULE MJL-S6'!J22 -> 18
B22: =1+B21 -> 10 | C22: INTEREST EXPENSE CASH REQUIREMENT | D22: SCHEDULE MJL-S6 | F22: ='SCHEDULE MJL-S6'!J24 -> -28067
B23: =1+B22 -> 11 | C23: INDIANA STATE TAX OFFSET | D23: SCHEDULE MJL-S6 | F23: ='SCHEDULE MJL-S6'!J18 -> 3
B24: =1+B23 -> 12 | C24: IOWA STATE TAX OFFSET | D24: SCHEDULE MJL-S6 | F24: ='SCHEDULE MJL-S6'!J20 -> 9
B25: =1+B24 -> 13 | C25: AVERAGE CUSTOMER ADVANCES FOR CONSTRUCTION | D25: SCHEDULE MJL-S7 | F25: ='SCHEDULE MJL-S7'!E13 -> -827.575
B26: 14 | C26: AVERAGE CUSTOMER DEPOSITS | D26: SCHEDULE MJL-S7 | F26: ='SCHEDULE MJL-S7'!E16 -> -17969.476
B27: =1+B26 -> 15 | C27: PENSION TRACKER REG ASSET | D27: SCHEDULE MJL-S8 | F27: =+'SCHEDULE MJL-S8'!H15 -> -25174.27
B28: =1+B27 -> 16 | C28: OPEB TRACKER REG LIABILITY | D28: SCHEDULE MJL-S8 | F28: =+'SCHEDULE MJL-S8'!H18 -> -6938.869
B29: =1+B28 -> 17 | C29: PAYS REGULATORY ASSET | D29: SCHEDULE MJL-S8 | F29: =+'SCHEDULE MJL-S8'!H21 -> 184.806
B30: =1+B29 -> 18 | C30: EQUITY ISSUANCE COST REGULATORY ASSET | D30: SCHEDULE MJL-S8 | F30: =+'SCHEDULE MJL-S8'!H33 -> 7003.50355
B31: =1+B30 -> 19 | C31: PISA REGULATORY ASSET | D31: SCHEDULE MJL-S8 | F31: =+'SCHEDULE MJL-S8'!H24 -> 246605.4889
B32: =1+B31 -> 20 | C32: UNDER COLLECT AMORTIZATIONS IN RATE BASE | D32: SCHEDULE MJL-S8 | F32: =+'SCHEDULE MJL-S8'!H30 -> -196.301
B33: =1+B32 -> 21 | C33: ACCUMULATED DEFERRED INCOME TAXES | D33: SCHEDULE MJL-S9 | F33: =+'SCHEDULE MJL-S9'!H21 -> -2942704.973
B35: =1+B33 -> 22 | C35: TOTAL ELECTRIC NET ORIGINAL COST RATE BASE | F35: =SUM(F15:F33) -> 10194089.69
C37: B. TOTAL ELECTRIC REVENUE REQUIREMENT
C39: TOTAL ELECTRIC OPERATING EXPENSES:
B40: =1+B35 -> 23 | C40: PRODUCTION | D40: SCHEDULE MJL-S11-1 | F40: =+'SCHEDULE MJL-S11-1'!CD22 -> 1026956.508
B41: =1+B40 -> 24 | C41: TRANSMISSION | D41: SCHEDULE MJL-S11-1 | F41: =+'SCHEDULE MJL-S11-1'!CD27 -> 108316.7356
B42: =1+B41 -> 25 | C42: REGIONAL MARKET EXPENSES | D42: SCHEDULE MJL-S11-1 | F42: =+'SCHEDULE MJL-S11-1'!CD32 -> 6676.29914
B43: =1+B42 -> 26 | C43: DISTRIBUTION | D43: SCHEDULE MJL-S11-1 | F43: =+'SCHEDULE MJL-S11-1'!CD37 -> 142141.9889
B44: 27 | C44: CUSTOMER ACCOUNTS | D44: SCHEDULE MJL-S11-1 | F44: =+'SCHEDULE MJL-S11-1'!CD42 -> 58322.73346
B45: 28 | C45: CUSTOMER SERVICE | D45: SCHEDULE MJL-S11-1 | F45: =+'SCHEDULE MJL-S11-1'!CD47 -> 14928.35463
B46: 29 | C46: SALES | D46: SCHEDULE MJL-S11-1 | F46: =+'SCHEDULE MJL-S11-1'!CD52 -> 281.92054
B47: 30 | C47: ADMINISTRATIVE AND GENERAL | D47: SCHEDULE MJL-S11-1 | F47: =+'SCHEDULE MJL-S11-1'!CD57 -> 206894.5873
B48: 31 | C48: TOTAL ELECTRIC OPERATING EXPENSES | F48: =SUM(F40:F47) -> 1564519.128
B49: 32 | C49: DEPRECIATION AND AMORTIZATION | D49: SCHEDULE MJL-S12-1 | F49: ='SCHEDULE MJL-S12-1'!F58 -> 766344.7327
B50: 33 | C50: TAXES OTHER THAN INCOME TAXES | D50: SCHEDULE MJL-S13-1 | F50: ='SCHEDULE MJL-S13-1'!G44 -> 179251.2576
C51: INCOME TAXES-BASED ON PROPOSED RATE OF RETURN
B52: =1+B50 -> 34 | C52: FEDERAL | D52: SCHEDULE MJL-S14 | F52: ='SCHEDULE MJL-S14'!E53 -> 48056.373
B53: =1+B52 -> 35 | C53: STATE | D53: SCHEDULE MJL-S14 | F53: ='SCHEDULE MJL-S14'!E61 -> 19970
B54: =1+B53 -> 36 | C54: CITY EARNINGS | D54: SCHEDULE MJL-S14 | F54: ='SCHEDULE MJL-S14'!E69 -> -27.033
B55: =1+B54 -> 37 | C55: TOTAL INCOME TAXES | F55: =SUM(F52:F54) -> 67999.34
C56: DEFERRED INCOME TAXES | E56: 0
B57: =1+B55 -> 38 | C57: DEFERRED INCOME TAX EXPENSE | D57: SCHEDULE MJL-S14 | F57: ='SCHEDULE MJL-S14'!E74 -> -78324.777
B58: =1+B57 -> 39 | C58: I.T.C. AMORTIZATION | D58: SCHEDULE MJL-S14 | F58: ='SCHEDULE MJL-S14'!E75 -> -4729.856
B59: =1+B58 -> 40 | C59: TOTAL DEFERRED INCOME TAXES | F59: =SUM(F57:F58) -> -83054.633
B61: =1+B59 -> 41 | C61: ="RETURN (RATE BASE * "&TEXT(D61,"0.000%")&")" -> RETURN (RATE BASE * 7.024%) | D61: 0.07024 | F61: =ROUND(D61*F35,0) -> 716033
B63: =1+B61 -> 42 | C63: TOTAL ELECTRIC REVENUE REQUIREMENT | F63: =+F48+F49+F50+F55+F59+F61 -> 3211092.825

Sheet SCHEDULE MJL-S16
A1: AMEREN MISSOURI
A2: ="INCREASE REQUIRED TO PRODUCE "& TEXT('SCHEDULE MJL-S15'!D61,"0.000%") &" RETURN ON " -> INCREASE REQUIRED TO PRODUCE 7.024% RETURN ON
A3: TOTAL ELECTRIC NET ORIGINAL COST RATE BASE
A4: ='SCHEDULE MJL-S15'!B3 -> FOR THE TWELVE MONTHS ENDED DECEMBER 31, 2020 AND AS TRUED UP
E8: TOTAL
E9: ELECTRIC
A10: LINE | C10: DESCRIPTION | E10: AMOUNT
C11: (A) | E11: (B)
A13: 1 | C13: TOTAL ELECTRIC NET ORIGINAL COST RATE BASE | E13: ='SCHEDULE MJL-S15'!F35 -> 10194089.69
C15: TOTAL ELECTRIC REVENUE REQUIREMENT:
A16: =1+A13 -> 2 | C16: ="RETURN AT PROPOSED RATE ("&TEXT('SCHEDULE MJL-S15'!D61,"0.000%")&")" -> RETURN AT PROPOSED RATE (7.024%) | E16: ='SCHEDULE MJL-S15'!F61 -> 716033
A17: =1+A16 -> 3 | C17: OPERATING AND MAINTENANCE EXPENSES | E17: ='SCHEDULE MJL-S15'!F48 -> 1564519.128
A18: 4 | C18: DEPRECIATION AND AMORTIZATION | E18: ='SCHEDULE MJL-S15'!F49 -> 766344.7327
A19: 5 | C19: TAXES OTHER THAN INCOME | E19: ='SCHEDULE MJL-S15'!F50 -> 179251.2576
A20: 6 | C20: FEDERAL AND STATE INCOME AND CITY EARNINGS TAXES AT CLAIMED RETURN | E20: ='SCHEDULE MJL-S15'!F52+'SCHEDULE MJL-S15'!F53+'SCHEDULE MJL-S15'!F54 -> 67999.34
A21: 7 | C21: DEFERRED INCOME TAXES | E21: ='SCHEDULE MJL-S15'!F59 -> -83054.633
A22: 8 | C22: TOTAL ELECTRIC REVENUE REQUIREMENT | E22: =SUM(E16:E21) -> 3211092.825
A25: =1+A22 -> 9 | C25: PRO FORMA TOTAL ELECTRIC OPERATING REVENUE AT PRESENT RATES | E25: =+'SCHEDULE MJL-S10'!F26 -> 2911182.966
A27: =1+A25 -> 10 | C27: DEFICIENCY IN TOTAL ELECTRIC OPERATING REVENUE | E27: =E22-E25 -> 299909.8586
F30: =+UPPER(C30) -> 

Sheet SCHEDULE MJL-S17
A1: AMEREN MISSOURI
A2: CALCULATION OF NET BASE ENERGY COST (BF)
A3: ='SCHEDULE MJL-S3'!A3 -> FOR THE TWELVE MONTHS ENDED SEPTEMBER 30, 2021
A9: LINE | C9: DESCRIPTION | E9: TOTAL | G9: SUMMER | I9: WINTER | K9: WINTER-2
C10: (A) | E10: (B) | G10: (D) | I10: (E) | K10: (F)
B12: A | C12: FUEL & PURCHASED POWER COSTS
C13: BASE LOAD
A14: =1 -> 1 | C14: FUEL FOR LOAD | E14: =G14+I14 -> 374269000 | G14: 119820000 | I14: 254449000 | K14: =E14-G14-I14 -> 0
A15: =1+A14 -> 2 | C15: FLY ASH (1) | E15: =G15+I15 -> -2442084.58 | G15: -817291 | I15: -1624793.58 | K15: 0
A16: =1+A15 -> 3 | C16: FIXED GAS SUPPLY COSTS FOR LOAD (2) | E16: =G16+I16 -> 6538502.76 | G16: 2193002 | I16: 4345500.76 | K16: 0
A17: 4 | C17: FUEL ADDITIVES (2) | E17: =G17+I17 -> 4977481.653 | G17: 1669438 | I17: 3308043.653 | K17: 0
A18: 5 | C18: PURCHASED POWER FOR LOAD | E18: =G18+I18 -> 20733000 | G18: 8635000 | I18: 12098000 | K18: 0
A20: =1+A18 -> 6 | C20: TOTAL BASE LOAD | E20: =SUM(E14:E18) -> 404075899.8 | G20: =SUM(G14:G18) -> 131500149 | I20: =SUM(I14:I18) -> 272575750.8 | K20: =SUM(K14:K18) -> 0
C22: OSS
A23: 7 | C23: FUEL FOR LOAD | E23: =G23+I23 -> 219162000 | G23: 69389000 | I23: 149773000
A24: 8 | C24: FLY ASH (1) | E24: =G24+I24 -> -1430020 | G24: -478584 | I24: -951436
A25: 9 | C25: FIXED GAS SUPPLY COSTS FOR LOAD (2) | E25: =G25+I25 -> 3828774 | G25: 1284164 | I25: 2544610
A26: 10 | C26: FUEL ADDITIVES (2) | E26: =G26+I26 -> 2914681 | G26: 977579 | I26: 1937102
A27: 11 | C27: PURCHASED POWER FOR LOAD | E27: =G27+I27 -> 0 | G27: 0 | I27: 0
A29: 12 | C29: TOTAL OSS | E29: =SUM(E23:E27) -> 224475435 | G29: =SUM(G23:G27) -> 71172159 | I29: =SUM(I23:I27) -> 153303276
A31: 13 | C31: TOTAL FUEL AND PURCHASED POWER | E31: =E20+E29 -> 628551334.8 | G31: =G20+G29 -> 202672308 | I31: =I20+I29 -> 425879026.8
B34: B | C34: TRANSMISSION COSTS AND REVENUES
A35: 14 | C35: TRANSMISSION BY OTHERS (ACCT. 565 @1.87%) (2) | E35: =G35+I35 -> 1500513.911 | G35: 503272 | I35: 997241.9112
A36: 15 | C36: TRANMISSION REVENUES (ACC 456.1) (2) | E36: =G36+I36 -> -536349.4879 | G36: -179892 | I36: -356457.4879
A38: 16 | C38: TOTAL TRANSMISSION COSTS AND REVENUES | E38: =SUM(E35:E36) -> 964164.4233 | G38: =SUM(G35:G36) -> 323380 | I38: =SUM(I35:I36) -> 640784.4233
B41: C | C41: ADDITIONAL FUEL & PP COSTS
A42: 17 | C42: MISO DAY 2 EXCLUDING ADMIN (ACCT 555) (2) | E42: =G42+I42 -> 33725702.85 | G42: 11311541 | I42: 22414161.85 | K42: =E42-G42-I42 -> 0
A43: 18 | C43: COMMON BOUNDARY (2) | E43: 198077 | G43: 66435 | I43: 131642
A44: 19 | C44: CAPACITY EXPENSE (2) | E44: 11829414.97 | G44: 3967565 | I44: 7861849.97 | K44: =E44-G44-I44 -> 0
A45: 20 | C45: ANCILLARY SERVICES PURCHASED (ACCT. 555) (2) | E45: 3701564.43 | G45: 1241505 | I45: 2460059.43 | K45: 0
A46: 21 | C46: PJM EXCLUDING ADMIN (ACCT. 555) (2) | E46: 0 | G46: 0 | I46: 0 | K46: 0
A47: 22 | C47: REPLACEMENT POWER INSURANCE (ACC 925) (2) | E47: 653138 | G47: 219062 | I47: 434076
A49: 23 | C49: TOTAL ADDITIONAL FUEL & PP COSTS | E49: =SUM(E42:E47) -> 50107897.25 | G49: =SUM(G42:G47) -> 16806108 | I49: =SUM(I42:I47) -> 33301789.25 | K49: =SUM(K42:K46) -> 0
B52: D | C52: SALES
A53: =1+A49 -> 24 | C53: OFF-SYSTEM ENERGY SALES REVENUES (ACCT. 447) | E53: =G53+I53 -> 244640364.2 | G53: 64258000 | I53: 180382364.2 | K53: =E53-G53-I53 -> 0
A54: =1+A53 -> 25 | C54: MAKE WHOLE PAYMENT MARGINS (ACCT 447) (2) | E54: =G54+I54 -> 3246722 | G54: 1088945 | I54: 2157777 | K54: 0
A55: =1+A54 -> 26 | C55: CAPACITY SALES REVENUES (ACCT. 447) (2) | E55: 18026212.74 | G55: 6045960 | I55: 11980252.74 | K55: 0
A56: =1+A55 -> 27 | C56: BILATERAL ENERGY SALES MARGINS (447) (2) | E56: 32505.65591 | G56: 10902 | I56: 21603.65591
A57: =1+A56 -> 28 | C57: FINANCIAL SWAPS (ACCT 447) (2) | E57: 3839423.075 | G57: 1287736 | I57: 2551687.075 | K57: 0
A58: =1+A57 -> 29 | C58: ANCILLARY SERVICES REVENUE (ACCT. 447) (2) | E58: 5244899.84 | G58: 1759130 | I58: 3485769.84 | K58: 0
A60: =A58+1 -> 30 | C60: TOTAL SALES | E60: =SUM(E53:E59) -> 275030127.5 | G60: =SUM(G53:G59) -> 74450673 | I60: =SUM(I53:I59) -> 200579454.5 | K60: =SUM(K53:K59) -> 0
B62: E | C62: OTHER ADJUSTMENTS
A63: =A60+1 -> 31 | C63: REAL-TIME LOAD AND GENERATION DEVIATION (2) | E63: =G63+I63 -> 6014072.555 | G63: 2017109 | I63: 3996963.555
A65: =A63+1 -> 32 | C65: TOTAL OTHER ADJUSTMENTS | E65: =E63 -> 6014072.555 | G65: =G63 -> 2017109 | I65: =I63 -> 3996963.555
A67: =A65+1 -> 33 | B67: A + B + C - D - E | C67: NET BASE ENERGY COSTS | E67: =E31+E38+E49-E60-E65 -> 398579196.4 | G67: =G31+G38+G49-G60-G65 -> 143334014 | I67: =I31+I38+I49-I60-I65 -> 255245182.4 | K67: =K20+K49-K60 -> 0
C69: LOAD FORECAST (DELIVERED MWH) USED IN PROSYM RUN | E69: =SUM(#REF!) -> 
C71: NET BASE FUEL COSTS ($ PER MWH) | E71: =E67*1000/E69 -> 
C74: LOAD FORECAST AT GENERATION LEVEL* | E74: =SUM(#REF!) -> 
C75: * EXCLUDES TRANSMISSION LINE LOSSES
C77: NET BASE FUEL COSTS ($ PER MWH) AT GENERATION LEVEL | E77: =+E67*1000/E74 -> 
A79: =1+A67 -> 34 | C79: LOAD AT MISO CP NODE AMMO.UE (KWH) | E79: =G79+I79 -> 3.2375637e+10 | G79: 10859000000 | I79: 2.1516637e+10 | K79: =E79-G79-I79 -> 0
A81: =1+A79 -> 35 | C81: BASE FACTOR (BF) ($ PER MWH) | E81: =E67/E79*1000 -> 12.3110843 | G81: =G67/G79*1000 -> 13.19955926 | I81: =I67/I79*1000 -> 11.86268944 | K81: =K67/K79*1000 -> 
A83: =1+A81 -> 36 | C83: BASE FACTOR (BF) (CENTS PER KWH) | E83: =E81/10 -> 1.23110843 | G83: =G81/10 -> 1.319955926 | I83: =I81/10 -> 1.186268944 | K83: =K81/10 -> 
A85: =1+A83 -> 37 | B85: MONTHS IN EACH PERIOD:
A86: =1+A85 -> 38 | C86: SUMMER: JUNE THROUGH SEPTEMBER
A87: 39 | C87: WINTER: OCTOBER THROUGH MAY
A89: =A87+1 -> 40 | B89: -1 | C89: ALLOCATED BETWEEN SUMMER AND WINTERS BASED ON FUEL ACCOUNT 501 FROM FUEL MODEL.
A90: =1+A89 -> 41 | B90: -2 | C90: ALLOCATED BETWEEN SUMMER AND WINTERS BASED ON LOAD.

Sheet SCHEDULE MJL-S18
A1: AMEREN MISSOURI
A2: MERAMEC RETIREMENT EXAMPLES
A3: ($000,000)
C5: With Proposed Meramec Retirement Tracker:
E6: Actual Costs
A7: Line | C7: Cost (A) | D7: Tracker Base (B) | E7: 2022 (C) | F7: 2023 (D) | G7: 2024 (E) | H7: 2025 (F) | I7: 2026 (G)
A8: 1 | C8: Allowed Return on Rate Base, Including Income Taxes | D8: 1.4 | E8: 6.8 | F8: 0 | G8: 0 | H8: 0 | I8: 0
A9: 2 | C9: Depreciation | D9: 9.9 | E9: 49.4 | F9: 0 | G9: 0 | H9: 0 | I9: 0
A10: 3 | C10: O&M | D10: 0.5 | E10: 2.6 | F10: 0 | G10: 0 | H10: 0 | I10: 0
A11: 4 | C11: Total | D11: =SUM(D8:D10) -> 11.8 | E11: =SUM(E8:E10) -> 58.8 | F11: =SUM(F8:F10) -> 0 | G11: =SUM(G8:G10) -> 0 | H11: 0 | I11: 0
A13: 5 | C13: Annual Deferral | D13: 0 | E13: =E11-$D$11 -> 47 | F13: =F11-$D$11 -> -11.8 | G13: -11.8 | H13: -11.8 | I13: -11.8
A14: 6 | C14: Cost of Capital | D14: 0 | E14: 4.057479205 | F14: 3.389072458 | G14: 2.662962594 | H14: 1.874168142 | I14: 1.017277581
A15: 7 | C15: Cumulative Deferral | D15: 0 | E15: =SUM(E13:E14)+D15 -> 51.05747921 | F15: =SUM(F13:F14)+E15 -> 42.64655166 | G15: 33.50951426 | H15: 23.5836824 | I15: 12.80095998
C17: Without Meramec Retirement Tracker:
E18: Actual Costs
C19: Cost (A) | D19: Base Rate Amt (B) | E19: 2022 (C) | F19: 2023 (D) | G19: 2024 (E) | H19: 2025 (F) | I19: 2026 (G)
A20: 8 | C20: Allowed Return on Rate Base, Including Income Taxes | D20: =E20 -> 6.8 | E20: =E8 -> 6.8 | F20: 0 | G20: =F20 -> 0 | H20: 0 | I20: 0
A21: 9 | C21: Depreciation | D21: =E21 -> 49.4 | E21: =E9 -> 49.4 | F21: 0 | G21: 0 | H21: 0 | I21: 0
A22: 10 | C22: O&M | D22: =E22 -> 2.6 | E22: =E10 -> 2.6 | F22: 0 | G22: 0 | H22: 0 | I22: 0
A23: 11 | C23: Total | D23: =SUM(D20:D22) -> 58.8 | E23: =SUM(E20:E22) -> 58.8 | F23: =SUM(F20:F22) -> 0 | G23: 0 | H23: 0 | I23: 0
A25: 12 | C25: Annual Deferral | D25: 0 | E25: =E23-$D$23 -> 0 | F25: =F23-$D$23 -> -58.8 | G25: =G23-$D$23 -> -58.8 | H25: =H23-$D$23 -> -58.8 | I25: =I23-$D$23 -> -58.8
A26: 13 | C26: Cost of Capital | D26: 0 | E26: 0 | F26: -5.076165474 | G26: -10.59055299 | H26: -16.58099396 | I26: -23.08858578
A27: 14 | C27: Cumulative Deferral | D27: 0 | E27: =SUM(E25:E26)+D27 -> 0 | F27: =SUM(F25:F26)+E27 -> -63.87616547 | G27: =SUM(G25:G26)+F27 -> -133.2667185 | H27: =SUM(H25:H26)+G27 -> -208.6477124 | I27: -290.5362982
